Workbook

Sheet Coverpage
A2: Housing for a Healthy California
A4: 2019 NOTICE OF FUNDING AVAILABILITY
A7: Article II - Building Homes and Jobs Act (SB2) Allocation - Supplemental Application
A27: State of California
A28: Governor Gavin Newsom
A30: Alexis Podesta, Secretary
A31: Business, Consumer Services and Housing Agency
A33: Ben Metcalf, Director
A34: Department of Housing and Community Development (HCD)
A37: 2020 West El Camino Avenue, Suite 500
A38: Sacramento, CA 95833
A39: Phone: (916) 263-2771
A40: Email: HousingforHealthyCA@hcd.ca.gov
A41: Website: http://www.hcd.ca.gov/grants-funding/active-funding/hhc.shtml
A42: Application Technical Support email:
A43: AppSupport@hcd.ca.gov
A45: May 13, 2019

Sheet Instructions
A1: Instructions & Checklist
A2: HCD will only accept applications through a postal carrier service such as U.S. Postal Service, UPS, FedEx or other carrier services that provide date stamp verification confirming delivery to HCD’s office. A complete original application and an electronic copy on CD or USB flash drive with all applicable information must be received by HCD via postal carrier no later than 5:00 p.m. on:
A3: 2019-08-13
A4: Applications must be on the HCD’s forms and cannot be altered or modified by the Applicant. Excel forms must be in Excel format and unprotected, not a .pdf document. Please fill-out the Support tab and email the entire workbook to Application Support for application errors at AppSupport@hcd.ca.gov.
A5: General Instructions (additional instructions and guidance are given throughout the Supplemental Application in "red" text and in cell comments.
A6: "Yellow" cells are for applicant input. Failure to provide the required attachments and documentation may disqualify your application from consideration or may negatively impact your point score.
A7: Required attachments are indicated in "Orange" through the Supplemental Application. Failure to provide the required attachments and documentation may disqualify your application from consideration or may negatively impact your point score. Electronically attached files must use the naming convention in the Supplemental Application. For Example: "App1 Payee Data" for Applicant 1 Payee Data Record/ STD. 204.
A8: Self score points awarded are indicated in "blue" cells in the 'Selection Criteria' worksheet. These are automated calculations based on the inputs provided by the applicant.
A9: "Red" shaded cells indicate the Applicant has failed to meet a requirement of the program. Point cells in "Scoring" worksheet shaded in "Red" indicate that the applicant has failed to meet the minimum points required.
A10: HHC Article II Supplemental Application Instructions
A11: Applicants must complete the following worksheets in the Supplemental Application.
A12: Applicant
A13: Supportive Services Plan
A14: Unit Mix & Max Award Amount
A15: Selection Criteria
A16: Certification
A17: Universal Application - NOT REQUIRED FOR HHC ARTICLE II
A18: Disclosure of Application: Information provided in this application and attachments will become a public record available for review by the public pursuant to the Public Records Act. As such, any materials provided will be disclosable to any person making a public records request. Please use discretion in providing HCD with information that is not specifically requested, including but not limited to, bank account numbers, personal phone numbers and home addresses. By providing this information to HCD, the Sponsor is waiving any claim of confidentiality and consents to the disclosure of all submitted material upon request.

Sheet Application Checklist
A1: Application Checklist
A2: Packaging instructions for the HHC application submission:
A3: (1) Use 3-ring binder/binders appropriate to the size/thickness of the Universal Application and the Supplemental Application when submitting the application package to the Department.
A4: (2) Use a labeled tab for each Tab and File Name to separate sections and documents attached in the Application.
A5: (3) Use the tab file name descriptions and file structure below for the attached document tabs.
A6: Section A - Applicant
A7: Tab # | D7: File Name | K7: File Description | AJ7: Attached?
A8: A1 | D8: Applicant Worksheet
A9: A2 | D9: ='A - Applicant & Min Requirement'!F8 -> App1 Cert & Legal Disclosure | K9: ='A - Applicant & Min Requirement'!L8 -> Reference Certification Tab | AJ9: =IF('A - Applicant & Min Requirement'!AK8="","",'A - Applicant & Min Requirement'!AK8) -> 
A10: A3 | D10: ='A - Applicant & Min Requirement'!F9 -> App1 Reso | K10: ='A - Applicant & Min Requirement'!L9 -> Reference HHC webpage for Resolution Document. | AJ10: =IF('A - Applicant & Min Requirement'!AK9="","",'A - Applicant & Min Requirement'!AK9) -> 
A11: A4 | D11: ='A - Applicant & Min Requirement'!F10 -> App1 Signature Block | K11: ='A - Applicant & Min Requirement'!L10 -> Signature Block - upload in Microsoft Word Document. | AJ11: =IF('A - Applicant & Min Requirement'!AK10="","",'A - Applicant & Min Requirement'!AK10) -> 
A12: A5 | D12: ='A - Applicant & Min Requirement'!F11 -> App1 TIN | K12: ='A - Applicant & Min Requirement'!L11 -> Reference Taxpayer Identification Number Document on the HHC webpage. | AJ12: =IF('A - Applicant & Min Requirement'!AK11="","",'A - Applicant & Min Requirement'!AK11) -> 
A13: A6 | D13: ='A - Applicant & Min Requirement'!F17 -> App2 Cert & Legal Disclosure | K13: ='A - Applicant & Min Requirement'!L17 -> Reference Certification Tab | AJ13: =IF('A - Applicant & Min Requirement'!AK17="","",'A - Applicant & Min Requirement'!AK17) -> 
A14: A7 | D14: ='A - Applicant & Min Requirement'!F18 -> App2 Reso | K14: ='A - Applicant & Min Requirement'!L18 -> Reference HHC webpage for Resolution Document. | AJ14: =IF('A - Applicant & Min Requirement'!AK18="","",'A - Applicant & Min Requirement'!AK18) -> 
A15: A8 | D15: ='A - Applicant & Min Requirement'!F19 -> App2 Signature Block | K15: ='A - Applicant & Min Requirement'!L19 -> Signature Block - upload in Microsoft Word Document. | AJ15: =IF('A - Applicant & Min Requirement'!AK19="","",'A - Applicant & Min Requirement'!AK19) -> 
A16: A9 | D16: ='A - Applicant & Min Requirement'!F20 -> App2 TIN | K16: ='A - Applicant & Min Requirement'!L20 -> Reference Taxpayer Identification Number Document on the HHC webpage. | AJ16: =IF('A - Applicant & Min Requirement'!AK40="","",'A - Applicant & Min Requirement'!AK40) -> 
A17: A10 | D17: ='A - Applicant & Min Requirement'!F40 -> County Application Plan | K17: ='A - Applicant & Min Requirement'!L40 -> Attached County Application Plan as specified in §211. | AJ17: =IF('A - Applicant & Min Requirement'!AK40="","",'A - Applicant & Min Requirement'!AK40) -> 
A18: A11 | D18: ='A - Applicant & Min Requirement'!F56 -> Letter of Explanation | K18: Letter of explanation for any "red" shaded cells. | AJ18: =IF('A - Applicant & Min Requirement'!AK56="","",'A - Applicant & Min Requirement'!AK56) -> 
A19: Section B - Unit Mix & Max Award Amt Section
A20: Tab # | D20: File Name | AJ20: Attached?
A21: B1 | D21: Unit Mix & Max Award Amt Worksheet
A22: Section C - Selection Criteria Section
A23: Tab # | D23: File Name | K23: File Description | AJ23: Attached?
A24: C1 | D24: Selection Criteria Worksheet
A25: C2 | D25: ='C - Selection Criteria'!F7 -> PIT Cert Letter | K25: ='C - Selection Criteria'!L7 -> Letter from CoC Certifying PIT Count. | AJ25: =IF('C - Selection Criteria'!AK7="","",'C - Selection Criteria'!AK7) -> 
A26: C3 | D26: ='C - Selection Criteria'!F12 -> Homelessness Plan | K26: ='C - Selection Criteria'!L12 -> Attach Applicant's homelessness plan. | AJ26: =IF('C - Selection Criteria'!AK12="","",'C - Selection Criteria'!AK12) -> 
A27: C4 | D27: ='C - Selection Criteria'!F41 -> Dev Exp 1, 2, 3, etc | K27: ='C - Selection Criteria'!L41 -> Notice of Completion, Placed in Service, Certificate of Occ. or equivalent. | AJ27: =IF('C - Selection Criteria'!AK41="","",'C - Selection Criteria'!AK41) -> 
A28: C5 | D28: ='C - Selection Criteria'!F43 -> Rent Contracts 1, 2, 3, etc | K28: ='C - Selection Criteria'!L43 -> Copies of Rental Assistance contracts. | AJ28: =IF('C - Selection Criteria'!AK43="","",'C - Selection Criteria'!AK43) -> 
A29: C6 | D29: ='C - Selection Criteria'!F46 -> TP Dev Exp 1, 2, 3, etc | K29: ='C - Selection Criteria'!L46 -> Notice of Completion, Placed in Service, Certificate of Occ. or equivalent. | AJ29: =IF('C - Selection Criteria'!AK46="","",'C - Selection Criteria'!AK46) -> 
A30: C7 | D30: ='C - Selection Criteria'!F48 -> TP Rent Contracts 1, 2, 3, etc | K30: ='C - Selection Criteria'!L48 -> Copies of Rental Assistance contracts. | AJ30: =IF('C - Selection Criteria'!AK48="","",'C - Selection Criteria'!AK48) -> 
A31: C8 | D31: ='C - Selection Criteria'!F56 -> Funding Commitments | K31: ='C - Selection Criteria'!L56 -> Attach letter(s) of commitment from funding sources. | AJ31: =IF('C - Selection Criteria'!AK56="","",'C - Selection Criteria'!AK48) -> 
A32: C9 | D32: ='C - Selection Criteria'!F57 -> Feasibility Study | K32: ='C - Selection Criteria'!L57 -> Attach documentation of applicants determination the project’s feasibility showing there is no financial gap that needs to be addressed. | AJ32: =IF('C - Selection Criteria'!AK57="","",'C - Selection Criteria'!AK48) -> 
A33: C10 | D33: ='C - Selection Criteria'!F61 -> Homeless Benefits Program | K33: ='C - Selection Criteria'!L61 -> Whole Person Care Pilot Program documents or documentation of a Health Homes Program benefitting people experiencing homelessness. | AJ33: =IF('C - Selection Criteria'!AK61="","",'C - Selection Criteria'!AK61) -> 
A34: C11 | D34: ='C - Selection Criteria'!F62 -> Funding Program | K34: ='C - Selection Criteria'!L62 -> Documentation of a locally committed funding program for projects in an amount at least equivalent to requested HHC funding. | AJ34: =IF('C - Selection Criteria'!AK62="","",'C - Selection Criteria'!AK62) -> 
A35: Section D - Supportive Services Plan Section
A36: Tab # | D36: File Name | K36: File Description | AJ36: Attached?
A37: D1 | D37: Supportive Services Plan Worksheet
A38: D2 | D38: ='D - Supportive Services Plan'!F3 -> SSP | K38: ='D - Supportive Services Plan'!L3 -> Attach a Supportive Services Plan as specified in §214. | AJ38: =IF('D - Supportive Services Plan'!AK3="","",'D - Supportive Services Plan'!AK3) -> 
A39: D3 | D39: ='D - Supportive Services Plan'!F76 -> Org. Chart/ Resumes | K39: ='D - Supportive Services Plan'!K76 -> Attach copies provider org. charts, staff resumes, and duty statements. | AJ39: =IF('D - Supportive Services Plan'!AK76="","",'D - Supportive Services Plan'!AK76) -> 
A40: Section E - Certification Section
A41: Tab # | D41: File Name | AJ41: Attached?
A42: E1 | D42: Certification Worksheet

Sheet A - Applicant & Min Requirement
A1: Applicant | AI1: Rev. 7/3/19
A2: Proposed Project uses of the HHC Funds §203
A3: Eligible County Applicant: | J3: Sacramento | O3: Continuum of Care (CoC): | Y3: =IFERROR(VLOOKUP(J3,Dropdowns!A2:B59,2,FALSE),"") -> Sacramento City & County CoC | AH3: CoC #: | AJ3: =IFERROR(VLOOKUP('A - Applicant & Min Requirement'!Y3,Dropdowns!B2:C59,2,FALSE),"") -> CA-503
A4: Address | V4: City | AC4: State | AH4: Zip
A5: Auth Rep Name | N5: Title | U5: Authorized Rep. Email | AG5: Phone
A6: Contact Name | M6: Title | U6: Contact Email | AF6: Phone
A7: Address | V7: City | AC7: State | AH7: Zip
A8: File Name: | D8: ='Application Checklist'!A9 -> A2 | F8: App1 Cert & Legal Disclosure | L8: Reference Certification Tab | AE8: Attached and on USB?
A9: File Name: | D9: ='Application Checklist'!A10 -> A3 | F9: App1 Reso | L9: Reference HHC webpage for Resolution Document. | AE9: Attached and on USB?
A10: File Name: | D10: ='Application Checklist'!A11 -> A4 | F10: App1 Signature Block | L10: Signature Block - upload in Microsoft Word Document. | AE10: Attached and on USB?
A11: File Name: | D11: ='Application Checklist'!A12 -> A5 | F11: App1 TIN | L11: Reference Taxpayer Identification Number Document on the HHC webpage. | AE11: Attached and on USB?
A12: Eligible City Applicant #2: | L12: City Name:
A13: Address | V13: City | AC13: State | AH13: Zip
A14: Auth Rep Name | N14: Title | U14: Authorized Rep. Email | AG14: Phone
A15: Contact Name | M15: Title | U15: Contact Email | AF15: Phone
A16: Address | V16: City | AC16: State | AH16: Zip
A17: File Name: | D17: ='Application Checklist'!A13 -> A6 | F17: App2 Cert & Legal Disclosure | L17: Reference Certification Tab | AE17: Attached and on USB?
A18: File Name: | D18: ='Application Checklist'!A14 -> A7 | F18: App2 Reso | L18: Reference HHC webpage for Resolution Document. | AE18: Attached and on USB?
A19: File Name: | D19: ='Application Checklist'!A15 -> A8 | F19: App2 Signature Block | L19: Signature Block - upload in Microsoft Word Document. | AE19: Attached and on USB?
A20: File Name: | D20: ='Application Checklist'!A16 -> A9 | F20: App2 TIN | L20: Reference Taxpayer Identification Number Document on the HHC webpage. | AE20: Attached and on USB?
A21: Other Project Contacts
A22: Financial Consultant
A23: Legal Name | P23: Contact Name | AB23: Contact Email
A24: Phone | H24: Address | V24: City | AD24: State | AH24: Zip
A25: Lead (primary) Service Provider
A26: Legal Name | P26: Contact Name | AB26: Contact Email
A27: Phone | H27: Address | V27: City | AD27: State | AH27: Zip
A28: Minimum Requirements §202
A29: (a)(1) Has Applicant identified a source of funding for providing intensive services promoting housing stability?
A30: Identify and explain source(s):
A31: (a)(2) Has Applicant developed a process for administering grant funds implementing affordable & Supportive housing projects (the agency Applicant is partnering with, or the applying housing agency, must have either administered rental assistance or funded an affordable or Supportive housing project within the past 3 years)?
A32: (a)(3) Does Applicant agree to collect and report data, as described in §219, to HCD?
A33: (a)(4) Is Applicant compliant with both their housing element and annual progress report submittals?
A34: (b)(1) Does Applicant's application promote housing for persons who meet all the requirements of §202(b)(1)?
A35: (b)(2) Is Applicant's proposed use of funds connected to the goals and strategies pursuant to Health & Safety Code §53591(a)(1)?
A36: (b)(3) Is Applicant's requested fund amount less than or equal to the amount specified in §208? | AK36: =IF('B - Unit Mix & Max Award Amt'!AH5=0,"",IF(AND('B - Unit Mix & Max Award Amt'!AH5>1,'B - Unit Mix & Max Award Amt'!AH5<20000000),"Yes","No")) -> 
A37: (b)(4) Does Applicant agree that the proposed project(s) must be financially feasible for the duration of the HHC rental subsidy?
A38: (b)(5) Has Applicant attached a resolution from the County board of supervisors, or other controlling body, that authorizes the County to apply for funding and coordinate referrals and access to health care services to HHC tenants, such as a WPC pilot program, Health Homes Program, or other community-based program funding services?
A39: (b)(6) Has Applicant provided the County Application Plan as specified in §211?
A40: File Name: | D40: ='Application Checklist'!A17 -> A10 | F40: County Application Plan | L40: Attached County Application Plan as specified in §211. | AE40: Attached and on USB?
A41: (c) Does Applicant acknowledge County subrecipient(s) of HHC funds have not been debarred or suspended from any state programs?
A42: Other Requirements
A43: Applicant agrees to use grant funds pursuant to the eligible uses in §203. For acquisition, new construction, reconstruction, and rehabilitation projects, Applicant agrees project will comply with Article 1, §103(a)(1), 104, 105, 106, 107, and 109(a)?
A44: Applicant agrees to comply with §204, Site and Neighborhood and Property Standard Requirements?
A45: Applicant agrees to comply with the §205, Occupancy and Income as well as the documentation requirements?
A46: Applicant agrees to comply with the §206, Rent Standard requirements?
A47: Applicant agrees to comply with §207, Capitialized Operating Subsidy Reserves (COSR) and §210, Use of Operating Cash Flow if funds are used to pay for a COSR?
A48: Applicant agrees to comply with §215, Housing First?
A49: Applicant agrees to comply with §216, Tenant Selection?
A50: Applicant agrees to comply with §217, Rental Agreements and Grievance Procedures?
A51: For HHC funded construction projects, Applicant agrees to incorporate §218, Vulnerable Populations Best Practices?
A52: Applicant agrees to comply with §219, Reporting Requirements?
A53: Applicant agrees to comply with the §221, Federal and State Overlays?
A54: Explanations
A55: Please provide a letter of explanation providing details for all "No" answers that are shaded red above.
A56: File Name: | D56: ='[3]Application Checklist'!A27 -> B3 | F56: Letter of Explanation | L56: Letter of explanation for any "red" shaded cells above. | AE56: Attached and on USB?

Sheet B - Unit Mix & Max Award Amt
A1: Unit Mix & Maximum Award Amount | AJ1: ='A - Applicant & Min Requirement'!AI1 -> Rev. 7/3/19
A2: Will Applicant be using award funds for Administrative Costs?
A3: If Applicant is using Administrative Costs, What is the proposed Adminstrative Cost percentage? | AA3: Allowed Administrative Cost: | AH3: =IFERROR((Y3*AH5),"") -> 0
A4: =CONCATENATE("Maximum HHC Loan Amount Chart"," - click here for 2019 HHC loan limits - (beginning on page 31)") -> Maximum HHC Loan Amount Chart - click here for 2019 HHC loan limits - (beginning on page 31) | AA4: Allowed Activity Cost: | AH4: =AH5-AH3 -> 0
AA5: TOTAL AWARD LIMIT: | AH5: =MIN(SUM(V32,AB32,AH32),20000000) -> 0
A6: ='A - Applicant & Min Requirement'!J3&" County" -> Sacramento County | H6: Proposed # of Assisted Units | P6: Eligible Per Unit (PU) Award Amounts
D7: # of Bedrms | F7: % of Area Median Income (AMI) | H7: 9% Tax Credit Development | J7: Non 4% or No Tax Credit Development | L7: COSR | N7: Rental Assistance | P7: 9% Tax Credit Development PU Amount | S7: 4% or No Tax Credit Development PU Amount | V7: Max Development Award | Y7: Total ANNAUL PU COSR | AB7: Max COSR Award (15 Years) | AE7: Annual Rental Assistance PU Amount | AH7: Max Rental Assistance Award 5 yrs per NOFA
D12: 0 | F12: 30% | P12: =IFERROR(VLOOKUP(AQ12,'PU FMR Amts'!$A$2:$F$233,AP12,FALSE),"") -> 132862 | S12: =IFERROR(VLOOKUP(AQ12,'PU FMR Amts'!$G$2:$L$233,AP12,FALSE),"") -> 186006 | V12: =IFERROR(SUM(H12*P12,J12*S12),"") -> 0 | AB12: =(L12*Y12)*15 -> 0 | AE12: =IFERROR(VLOOKUP('A - Applicant & Min Requirement'!$J$3,'PU FMR Amts'!$M$2:$R$59,AP12,FALSE)*0.95*12,"") -> 9724.2 | AH12: =IFERROR(N12*AE12*5,"") -> 0 | AP12: 2 | AQ12: =IF(F12="",0,'A - Applicant & Min Requirement'!$J$3&""&F12) -> Sacramento30%
D13: 1 | F13: 30% | P13: =IFERROR(VLOOKUP(AQ13,'PU FMR Amts'!$A$2:$F$233,AP13,FALSE),"") -> 132862 | S13: =IFERROR(VLOOKUP(AQ13,'PU FMR Amts'!$G$2:$L$233,AP13,FALSE),"") -> 186006 | V13: =IFERROR(SUM(H13*P13,J13*S13),"") -> 0 | AB13: =(L13*Y13)*15 -> 0 | AE13: =IFERROR(VLOOKUP('A - Applicant & Min Requirement'!$J$3,'PU FMR Amts'!$M$2:$R$59,AP13,FALSE)*0.95*12,"") -> 11035.2 | AH13: =IFERROR(N13*AE13*5,"") -> 0 | AP13: 3 | AQ13: =IF(F13="",0,'A - Applicant & Min Requirement'!$J$3&""&F13) -> Sacramento30%
D14: 2 | F14: 30% | P14: =IFERROR(VLOOKUP(AQ14,'PU FMR Amts'!$A$2:$F$233,AP14,FALSE),"") -> 132862 | S14: =IFERROR(VLOOKUP(AQ14,'PU FMR Amts'!$G$2:$L$233,AP14,FALSE),"") -> 186006 | V14: 0 | AB14: 0 | AE14: =IFERROR(VLOOKUP('A - Applicant & Min Requirement'!$J$3,'PU FMR Amts'!$M$2:$R$59,AP14,FALSE)*0.95*12,"") -> 13908 | AH14: 0 | AP14: 4 | AQ14: =IF(F14="",0,'A - Applicant & Min Requirement'!$J$3&""&F14) -> Sacramento30%
D15: 3 | F15: 30% | P15: =IFERROR(VLOOKUP(AQ15,'PU FMR Amts'!$A$2:$F$233,AP15,FALSE),"") -> 132862 | S15: =IFERROR(VLOOKUP(AQ15,'PU FMR Amts'!$G$2:$L$233,AP15,FALSE),"") -> 186006 | V15: 0 | AB15: 0 | AE15: =IFERROR(VLOOKUP('A - Applicant & Min Requirement'!$J$3,'PU FMR Amts'!$M$2:$R$59,AP15,FALSE)*0.95*12,"") -> 20109.6 | AH15: 0 | AP15: 5 | AQ15: =IF(F15="",0,'A - Applicant & Min Requirement'!$J$3&""&F15) -> Sacramento30%
D16: 4+ | F16: 30% | P16: =IFERROR(VLOOKUP(AQ16,'PU FMR Amts'!$A$2:$F$233,AP16,FALSE),"") -> 132862 | S16: =IFERROR(VLOOKUP(AQ16,'PU FMR Amts'!$G$2:$L$233,AP16,FALSE),"") -> 186006 | V16: 0 | AB16: 0 | AE16: =IFERROR(VLOOKUP('A - Applicant & Min Requirement'!$J$3,'PU FMR Amts'!$M$2:$R$59,AP16,FALSE)*0.95*12,"") -> 24430.2 | AH16: 0 | AP16: 6 | AQ16: =IF(F16="",0,'A - Applicant & Min Requirement'!$J$3&""&F16) -> Sacramento30%
D17: 0 | F17: 25% | P17: =IFERROR(VLOOKUP(AQ17,'PU FMR Amts'!$A$2:$F$233,AP17,FALSE),"") -> 143377.4531 | S17: =IFERROR(VLOOKUP(AQ17,'PU FMR Amts'!$G$2:$L$233,AP17,FALSE),"") -> 196521 | V17: 0 | AB17: 0 | AE17: =IFERROR(VLOOKUP('A - Applicant & Min Requirement'!$J$3,'PU FMR Amts'!$M$2:$R$59,AP17,FALSE)*0.95*12,"") -> 9724.2 | AH17: 0 | AP17: 2 | AQ17: =IF(F17="",0,'A - Applicant & Min Requirement'!$J$3&""&F17) -> Sacramento25%
D18: 1 | F18: 25% | P18: =IFERROR(VLOOKUP(AQ18,'PU FMR Amts'!$A$2:$F$233,AP18,FALSE),"") -> 144097.6897 | S18: =IFERROR(VLOOKUP(AQ18,'PU FMR Amts'!$G$2:$L$233,AP18,FALSE),"") -> 197242 | V18: 0 | AB18: 0 | AE18: =IFERROR(VLOOKUP('A - Applicant & Min Requirement'!$J$3,'PU FMR Amts'!$M$2:$R$59,AP18,FALSE)*0.95*12,"") -> 11035.2 | AH18: 0 | AP18: 3 | AQ18: =IF(F18="",0,'A - Applicant & Min Requirement'!$J$3&""&F18) -> Sacramento25%
D19: 2 | F19: 25% | P19: =IFERROR(VLOOKUP(AQ19,'PU FMR Amts'!$A$2:$F$233,AP19,FALSE),"") -> 146402.4465 | S19: =IFERROR(VLOOKUP(AQ19,'PU FMR Amts'!$G$2:$L$233,AP19,FALSE),"") -> 199546 | V19: 0 | AB19: 0 | AE19: =IFERROR(VLOOKUP('A - Applicant & Min Requirement'!$J$3,'PU FMR Amts'!$M$2:$R$59,AP19,FALSE)*0.95*12,"") -> 13908 | AH19: 0 | AP19: 4 | AQ19: =IF(F19="",0,'A - Applicant & Min Requirement'!$J$3&""&F19) -> Sacramento25%
D20: 3 | F20: 25% | P20: =IFERROR(VLOOKUP(AQ20,'PU FMR Amts'!$A$2:$F$233,AP20,FALSE),"") -> 148563.1561 | S20: =IFERROR(VLOOKUP(AQ20,'PU FMR Amts'!$G$2:$L$233,AP20,FALSE),"") -> 201707 | V20: 0 | AB20: 0 | AE20: =IFERROR(VLOOKUP('A - Applicant & Min Requirement'!$J$3,'PU FMR Amts'!$M$2:$R$59,AP20,FALSE)*0.95*12,"") -> 20109.6 | AH20: 0 | AP20: 5 | AQ20: =IF(F20="",0,'A - Applicant & Min Requirement'!$J$3&""&F20) -> Sacramento25%
D21: 4+ | F21: 25% | P21: =IFERROR(VLOOKUP(AQ21,'PU FMR Amts'!$A$2:$F$233,AP21,FALSE),"") -> 150291.7237 | S21: =IFERROR(VLOOKUP(AQ21,'PU FMR Amts'!$G$2:$L$233,AP21,FALSE),"") -> 203436 | V21: 0 | AB21: 0 | AE21: =IFERROR(VLOOKUP('A - Applicant & Min Requirement'!$J$3,'PU FMR Amts'!$M$2:$R$59,AP21,FALSE)*0.95*12,"") -> 24430.2 | AH21: 0 | AP21: 6 | AQ21: =IF(F21="",0,'A - Applicant & Min Requirement'!$J$3&""&F21) -> Sacramento25%
D22: 0 | F22: 20% | P22: =IFERROR(VLOOKUP(AQ22,'PU FMR Amts'!$A$2:$F$233,AP22,FALSE),"") -> 153892.9063 | S22: =IFERROR(VLOOKUP(AQ22,'PU FMR Amts'!$G$2:$L$233,AP22,FALSE),"") -> 207037 | V22: 0 | AB22: 0 | AE22: =IFERROR(VLOOKUP('A - Applicant & Min Requirement'!$J$3,'PU FMR Amts'!$M$2:$R$59,AP22,FALSE)*0.95*12,"") -> 9724.2 | AH22: 0 | AP22: 2 | AQ22: =IF(F22="",0,'A - Applicant & Min Requirement'!$J$3&""&F22) -> Sacramento20%
D23: 1 | F23: 20% | P23: =IFERROR(VLOOKUP(AQ23,'PU FMR Amts'!$A$2:$F$233,AP23,FALSE),"") -> 155477.4266 | S23: =IFERROR(VLOOKUP(AQ23,'PU FMR Amts'!$G$2:$L$233,AP23,FALSE),"") -> 208621 | V23: 0 | AB23: 0 | AE23: =IFERROR(VLOOKUP('A - Applicant & Min Requirement'!$J$3,'PU FMR Amts'!$M$2:$R$59,AP23,FALSE)*0.95*12,"") -> 11035.2 | AH23: 0 | AP23: 3 | AQ23: =IF(F23="",0,'A - Applicant & Min Requirement'!$J$3&""&F23) -> Sacramento20%
D24: 2 | F24: 20% | P24: =IFERROR(VLOOKUP(AQ24,'PU FMR Amts'!$A$2:$F$233,AP24,FALSE),"") -> 159942.893 | S24: =IFERROR(VLOOKUP(AQ24,'PU FMR Amts'!$G$2:$L$233,AP24,FALSE),"") -> 213087 | V24: 0 | AB24: 0 | AE24: =IFERROR(VLOOKUP('A - Applicant & Min Requirement'!$J$3,'PU FMR Amts'!$M$2:$R$59,AP24,FALSE)*0.95*12,"") -> 13908 | AH24: 0 | AP24: 4 | AQ24: =IF(F24="",0,'A - Applicant & Min Requirement'!$J$3&""&F24) -> Sacramento20%
D25: 3 | F25: 20% | P25: =IFERROR(VLOOKUP(AQ25,'PU FMR Amts'!$A$2:$F$233,AP25,FALSE),"") -> 164264.3121 | S25: =IFERROR(VLOOKUP(AQ25,'PU FMR Amts'!$G$2:$L$233,AP25,FALSE),"") -> 217408 | V25: 0 | AB25: 0 | AE25: =IFERROR(VLOOKUP('A - Applicant & Min Requirement'!$J$3,'PU FMR Amts'!$M$2:$R$59,AP25,FALSE)*0.95*12,"") -> 20109.6 | AH25: 0 | AP25: 5 | AQ25: =IF(F25="",0,'A - Applicant & Min Requirement'!$J$3&""&F25) -> Sacramento20%
D26: 4+ | F26: 20% | P26: =IFERROR(VLOOKUP(AQ26,'PU FMR Amts'!$A$2:$F$233,AP26,FALSE),"") -> 167721.4474 | S26: =IFERROR(VLOOKUP(AQ26,'PU FMR Amts'!$G$2:$L$233,AP26,FALSE),"") -> 220865 | V26: 0 | AB26: 0 | AE26: =IFERROR(VLOOKUP('A - Applicant & Min Requirement'!$J$3,'PU FMR Amts'!$M$2:$R$59,AP26,FALSE)*0.95*12,"") -> 24430.2 | AH26: 0 | AP26: 6 | AQ26: =IF(F26="",0,'A - Applicant & Min Requirement'!$J$3&""&F26) -> Sacramento20%
D27: 0 | F27: 15% | P27: =IFERROR(VLOOKUP(AQ27,'PU FMR Amts'!$A$2:$F$233,AP27,FALSE),"") -> 164552.4067 | S27: =IFERROR(VLOOKUP(AQ27,'PU FMR Amts'!$G$2:$L$233,AP27,FALSE),"") -> 217696 | V27: 0 | AB27: 0 | AE27: =IFERROR(VLOOKUP('A - Applicant & Min Requirement'!$J$3,'PU FMR Amts'!$M$2:$R$59,AP27,FALSE)*0.95*12,"") -> 9724.2 | AH27: 0 | AP27: 2 | AQ27: =IF(F27="",0,'A - Applicant & Min Requirement'!$J$3&""&F27) -> Sacramento15%
D28: 1 | F28: 15% | P28: =IFERROR(VLOOKUP(AQ28,'PU FMR Amts'!$A$2:$F$233,AP28,FALSE),"") -> 166713.1163 | S28: =IFERROR(VLOOKUP(AQ28,'PU FMR Amts'!$G$2:$L$233,AP28,FALSE),"") -> 219857 | V28: 0 | AB28: 0 | AE28: =IFERROR(VLOOKUP('A - Applicant & Min Requirement'!$J$3,'PU FMR Amts'!$M$2:$R$59,AP28,FALSE)*0.95*12,"") -> 11035.2 | AH28: 0 | AP28: 3 | AQ28: =IF(F28="",0,'A - Applicant & Min Requirement'!$J$3&""&F28) -> Sacramento15%
D29: 2 | F29: 15% | P29: =IFERROR(VLOOKUP(AQ29,'PU FMR Amts'!$A$2:$F$233,AP29,FALSE),"") -> 173483.3395 | S29: =IFERROR(VLOOKUP(AQ29,'PU FMR Amts'!$G$2:$L$233,AP29,FALSE),"") -> 226627 | V29: 0 | AB29: 0 | AE29: =IFERROR(VLOOKUP('A - Applicant & Min Requirement'!$J$3,'PU FMR Amts'!$M$2:$R$59,AP29,FALSE)*0.95*12,"") -> 13908 | AH29: 0 | AP29: 4 | AQ29: =IF(F29="",0,'A - Applicant & Min Requirement'!$J$3&""&F29) -> Sacramento15%
D30: 3 | F30: 15% | P30: =IFERROR(VLOOKUP(AQ30,'PU FMR Amts'!$A$2:$F$233,AP30,FALSE),"") -> 179821.4209 | S30: =IFERROR(VLOOKUP(AQ30,'PU FMR Amts'!$G$2:$L$233,AP30,FALSE),"") -> 232965 | V30: 0 | AB30: 0 | AE30: =IFERROR(VLOOKUP('A - Applicant & Min Requirement'!$J$3,'PU FMR Amts'!$M$2:$R$59,AP30,FALSE)*0.95*12,"") -> 20109.6 | AH30: 0 | AP30: 5 | AQ30: =IF(F30="",0,'A - Applicant & Min Requirement'!$J$3&""&F30) -> Sacramento15%
D31: 4+ | F31: 15% | P31: =IFERROR(VLOOKUP(AQ31,'PU FMR Amts'!$A$2:$F$233,AP31,FALSE),"") -> 185295.2184 | S31: =IFERROR(VLOOKUP(AQ31,'PU FMR Amts'!$G$2:$L$233,AP31,FALSE),"") -> 238439 | V31: 0 | AB31: 0 | AE31: =IFERROR(VLOOKUP('A - Applicant & Min Requirement'!$J$3,'PU FMR Amts'!$M$2:$R$59,AP31,FALSE)*0.95*12,"") -> 24430.2 | AH31: 0 | AP31: 6 | AQ31: =IF(F31="",0,'A - Applicant & Min Requirement'!$J$3&""&F31) -> Sacramento15%
D32: Total Units: | H32: =SUM(H12:I31) -> 0 | J32: =SUM(J12:K31) -> 0 | L32: =SUM(L12:M31) -> 0 | N32: =SUM(N12:O31) -> 0 | V32: =SUM(V12:X31) -> 0 | AB32: =SUM(AB12:AD31) -> 0 | AH32: =SUM(AH12:AJ31) -> 0
A33: Applicants Requesting COSR: Describe methodology used to estimate per unit COSR amount that is consistent with §207
A35: Applicant agrees to use awarded grant funds pursuant to §203
A36: CERTIFICATION
A37: The information, statements and, attachments included in this "Unit Mix & Award Amt" worksheet are, to the best of my knowledge and belief, true and correct.
A39: Printed Name | K39: Title of Signatory | U39: Signature | AK39: Date

Sheet C - Selection Criteria
A1: Selection Criteria §213 (145 Points Max ) | AJ1: ='A - Applicant & Min Requirement'!AI1 -> Rev. 7/3/19
Z2: Total Self Score | AK2: =SUM(AK3,AK13,AK38,AK53,AK58) -> 0
A3: Need §213(a) - 25 Points Max | AK3: =AK4+AK8 -> 0
A4: (1) Estimated Need based on Applicant's geographic jurisdiction - 10 Points Max. | AK4: =MIN(SUM(AK5:AL6),10) -> 0
A5: (a) Points awarded if more than 400 individuals are Homeless using the latest Point in Time Count (PIT) as stated in the NOFA - 10 points. OR | V5: County: | Y5: ='A - Applicant & Min Requirement'!J3 -> Sacramento | AF5: County PIT: | AK5: =IF(AI5>=400,10,0) -> 0
A6: (b) More than half of the Extremely low income (ELI) population that pay more than 50% of their income towards rent - 5 points. | T6: ELI pop. paying >50% to rent | Y6: =VLOOKUP('A - Applicant & Min Requirement'!J3,'CHAS Data'!A2:C59,2,FALSE) -> 1368 | AB6: Total ELI pop. | AE6: =VLOOKUP('A - Applicant & Min Requirement'!J3,'CHAS Data'!A2:C59,3,FALSE) -> 62015 | AH6: =Y6/AE6 -> 0.02205917923 | AK6: =IFERROR(IF(AH6>0.5,5,0),"") -> 0
A7: File Name: | D7: ='Application Checklist'!A25 -> C2 | F7: PIT Cert Letter | L7: Letter from CoC Certifying PIT Count. | AD7: Attached and on USB?
A8: (2) Describe the Applicant’s demonstrated commitment to address the needs of people experiencing homelessness. Applicant has demonstrated successful outcomes in implementing federal and state programs addressing the needs of people experiencing homelessness, along with local commitment of resources - 15 Points Max. | AK8: =MIN(MAX(AK9,AK10,AK11),15) -> 0
A9: (a) The Applicant has dedicated local resources to provide Permanent housing to residents experiencing homelessness over the last three years and has a plan to address homelessness. The plan has been successful and has been implemented for at least one year - 15 points. OR | AK9: =IF(AI9="Yes",15,0) -> 0
A10: (b) The Applicant has administered programs with successful outcomes in moving people from homelessness to Permanent housing but has not dedicated resources consistently over the last three years. The Applicant has a plan to address homelessness and has been implementing it over the last year - 10 points. OR | AK10: =IF(AI10="Yes",10,0) -> 0
A11: (c) The Applicant proposes to implement some actions in the next 12 months, including implementation of a plan to address homelessness and dedication of local resources - 5 points. | AK11: =IF(AI11="Yes",5,0) -> 0
A12: File Name: | D12: ='Application Checklist'!A26 -> C3 | F12: Homelessness Plan | L12: Attach Applicant's homelessness plan. | AD12: Attached and on USB?
A13: Proposed Uses and Process for Using Funds §213(b) - 30 Points Max | AK13: =AK14+AK21+AK28 -> 0
A14: (1) Applicant’s description (either address or narrative) of the specific uses of the grant funds. (must provide all information below to receive points). (a) If the Applicant intends to use funding for development, project(s)’ location and target date(s) for completion; OR (b) If the Applicant intends to use funding for rental assistance or a COSR, project(s)’ total number of units and the total number of households who will receive Permanent housing and/or rental subsidies under the project. - 10 Points. | AK14: =IF(AND(AM16="Yes",AM17="Yes",AM18="Yes",AM19="Yes",AM20="Yes"),10,0) -> 0
A15: Project Address/ Description | R15: Project Type | V15: Total Units | X15: # of Households that will receive Permanent Housing and/or Rental Subsidies | AI15: Target Date Completion
A16: 1. | AM16: =IF(B16="","No",IF(AND(R16<>"",V16<>"",X16<>"",AI16<>""),"Yes","No")) -> No
A17: 2. | AM17: =IF(B17="","Yes",IF(AND(R17<>"",V17<>"",X17<>"",AI17<>""),"Yes","No")) -> Yes
A18: 3. | AM18: =IF(B18="","Yes",IF(AND(R18<>"",V18<>"",X18<>"",AI18<>""),"Yes","No")) -> Yes
A19: 4. | AM19: Yes
A20: 5. | AM20: Yes
A21: (2) Process for Using Grant Funds (must provide descriptions for the following to receive points) - 10 Points Max. | AK21: =IF(AND(AM23="Yes",AM25="Yes",AM27="Yes"),10,0) -> 0
A22: (a) The Applicant’s or agency or agencies responsible for the distribution of the HHC grant funds and the proposed selection criteria and process to identify project(s) and/or sub-recipient(s) - 6 Points: | AK22: =IF(AM23="yes",6,0) -> 0
AM23: =IF(A23="","No","Yes") -> No
A24: (b) The timeline with clearly delineated milestones - 1 Point: | AK24: =IF(AM25="yes",1,0) -> 0
AM25: =IF(A25="","No","Yes") -> No
A26: (c) The proposed funding source for the services - 3 Points: | AK26: =IF(AM27="yes",3,0) -> 0
AM27: =IF(A27="","No","Yes") -> No
A28: (3) Funding Coordination (must provide descriptions for the following to receive points) - 10 Points. | AK28: =SUM(AK29,AK34,AK36) -> 0
A29: (a) Applicant's description of the following service provisions: | AK29: =SUM(AK30:AL33) -> 0
A30: (1) The funding source(s) - 2 points. | AK30: =IF(AM30="yes",2,0) -> 0 | AM30: =IF(J30="","No","Yes") -> No
A31: (2) The amount of funding per participant, per month, the Applicant intends to commit - 1 Point | AK31: =IF(AM31="yes",1,0) -> 0 | AM31: No
A32: (3) The length of time services will be provided - 1 Point. | AK32: =IF(AM32="yes",1,0) -> 0 | AM32: No
A33: (4) The process for selecting the Homeless service provider - 2 Points. | AK33: =IF(AM33="yes",2,0) -> 0 | AM33: =IF(J33="","No","Yes") -> No
A34: (b) The Applicant’s partnerships with affordable and Supportive housing providers to address homelessness - 2 Points. | AK34: =IF(AM35="yes",2,0) -> 0
AM35: =IF(A35="","No","Yes") -> No
A36: (c) Applicant’s partnerships with healthcare providers who provide dental, mental health, primary care and substance abuse services - 2 Points. | AK36: =IF(AM37="yes",2,0) -> 0
AM37: =IF(A37="","No","Yes") -> No
A38: Experience §213(c) - 40 Points Max | AK38: =AK39+AK44+AK49+AK51 -> 0
A39: (1) The Applicant’s experience, for the last three years, in funding and underwriting Supportive housing projects; and/or the Applicant’s experience administering Supportive housing projects; and/or the Applicant’s experience working with agencies that administer rental subsidies. - 15 points max. | AK39: =MIN(MAX(AK40,AK42),15) -> 0
A40: If Applicant intends to use funding for development or a COSR, enter the number of Projects Applicant has developed and/or administered in the last 3 Years: | AK40: =IF(AH40="4+",15,IF(AH40="2 to 3",10,IF(AH40=1,5,0))) -> 0
A41: File Name: | D41: ='Application Checklist'!A27 -> C4 | F41: Dev Exp 1, 2, 3, etc | L41: Notice of Completion, Placed in Service, Certificate of Occ. or equivalent. | AE41: Attached and on USB?
A42: If Applicant intends to use funding for rental assistance, enter the number of households Applicant has administered rental subsidies for in the last 3 years: | AK42: =IF(AH42="500+",15,IF(AH42="300 to 499",10,IF(AH42="100 to 299",5,0))) -> 0
A43: File Name: | D43: ='Application Checklist'!A28 -> C5 | F43: Rent Contracts 1, 2, 3, etc | L43: Copies of Rental Assistance contracts. | AE43: Attached and on USB?
A44: (2) The Applicant’s development funding, rental assistance, or other operating assistance to the Target Population that is comparable in scale and scope to the number of projects or rental assistance the Applicant has proposed for the Program. - 15 points max | AK44: =MIN(MAX(AK45,AK47),15) -> 0
A45: If Applicant intends to use funding for development or a COSR, enter the number of Projects comparable in scale and scope to the proposed project and Target Population that Applicant has developed and/or administered in last 3 Years: | AK45: =IF(AH45="4+",15,IF(AH45="2 to 3",10,IF(AH45=1,5,0))) -> 0
A46: File Name: | D46: ='Application Checklist'!A29 -> C6 | F46: TP Dev Exp 1, 2, 3, etc | L46: Notice of Completion, Placed in Service, Certificate of Occ. or equivalent. | AE46: Attached and on USB?
A47: If Applicant intends to use funding for rental assistance, enter the number of clients similar to the Target Population the administering agency has administered rental subsidies for in the last 3 years: | AK47: =IF(AH47="500+",15,IF(AH47="300 to 499",10,IF(AH47="100 to 299",5,0))) -> 0
A48: File Name: | D48: ='Application Checklist'!A30 -> C7 | F48: TP Rent Contracts 1, 2, 3, etc | L48: Copies of Rental Assistance contracts. | AE48: Attached and on USB?
A49: (3) Describe barrier(s) the Applicant encountered in the implementation of its Homeless strategy or funding and how barriers were resolved - 5 points. | AK49: =IF(A50="",0,5) -> 0
A51: (4) Describe any best practices developed by the Applicant that could be used for other program participants. - 5 points. | AK51: =IF(A52="",0,5) -> 0
A53: Funding Sources §213(d) - 30 Points Max | AK53: =AK54 -> 0
A54: (1) Applicant’s description of the plan to sustain funding for the program/project. The Applicant may commit to using funding from the Building Homes & Jobs Act allocations to score points in this category. - 30 points. | AK54: =IF(A55="",0,30) -> 0
A56: File Name: | D56: ='Application Checklist'!A31 -> C8 | F56: Funding Commitments | L56: Attach letter(s) of commitment from funding sources. | AE56: Attached and on USB?
A57: File Name: | D57: ='Application Checklist'!A32 -> C9 | F57: Feasibility Study | L57: Attach documentation of applicants determination the project’s feasibility showing there is no financial gap that needs to be addressed. | AE57: Attached and on USB?
A58: Incentive Points §213(e) - 20 Points Max | AK58: =AK59+AK60 -> 0
A59: (1) The Applicant has a Whole Person Care Pilot Program or is working with managed care organizations to make available Health Homes Program benefits to people experiencing homelessness. - 10 points. | AK59: =IF(AI59="Yes",10,0) -> 0
A60: (2) Evidence demonstrating locally committed funding program for projects in an amount at least equivalent to requested HHC funding. - 10 points. | AK60: =IF(AI60="Yes",10,0) -> 0
A61: File Name: | D61: ='Application Checklist'!A33 -> C10 | F61: Homeless Benefits Program | L61: Whole Person Care Pilot Program documents or documentation of a Health Homes Program benefitting people experiencing homelessness. | AE61: Attached and on USB?
A62: File Name: | D62: ='Application Checklist'!A34 -> C11 | F62: Funding Program | L62: Documentation of a locally committed funding program for projects in an amount at least equivalent to requested HHC funding. | AE62: Attached and on USB?

Sheet D - Supportive Services Plan
A1: Supportive Services Plan §214 | AJ1: ='A - Applicant & Min Requirement'!AI1 -> Rev. 7/3/19
A2: All projects must include a SSP meeting §214 requirements. Be as specific as possible. The checklist below serves as a guide to ensure all the components of the SSP are complete.
A3: File Name: | D3: ='Application Checklist'!A38 -> D2 | F3: SSP | L3: Attach a Supportive Services Plan as specified in §214. | AE3: Attached and on USB?
A4: Tenant Outreach, Engagement, and Retention Strategies §214 (d)(1)
A5: Services in the HHC Program must be voluntary, flexible, and individualized so that HHC tenants may continue to engage with supportive services providers, even as the intensity of services needed may change. Adaptability in the level of services should support tenant engagement and housing retention. Describe the plan for conducting tenant outreach, engagement and retention strategies to be used in support of these Program objectives.
A7: List of Services §214 (d)(2)
A8: Pursuant to §214 (d)(2), identify all required services, and any other services that are encouraged to be part of the SSP, in the table below. Provide a detailed description of each service to be offered, the frequency of each service, the proposed service provider, location, and general hours of availability of the services.
A9: §214 (c ), Required Services | G9: Description | W9: Provider | AB9: Miles from Project Site | AE9: Frequency of Offered Service | AI9: Hrs. Available (for example) 8 am - 5 pm
A10: (1) Housing Navigation
A11: (2) Case management
A12: (3) Peer support activities | AM12: Select One
A13: (4) Support linking to behavior health care | AM13: Case management
A14: (5) Support linking to substance abuse disorder treatment | AM14: Peer support activities
A15: (6) Support linking to primary care services | AM15: Mental health care
A16: (7) Benefits counseling and advocacy | AM16: Substance use services
A17: (8) Basic housing retention skills | AM17: Linkage to physical health care
A18: (9) Services for persons with co-occurring disabilities/disorders
A19: Optional (encouraged) Services: | G19: Description | W19: Provider | AB19: Miles from Project Site | AE19: Frequency of Offered Service | AI19: Hrs. Available (for example) 8 am - 5 pm | AM19: Benefits counseling and advocacy
A20: (1) Recreational and social activities | AM20: Basic housing retention skills
A21: (2) Educational services | AM21: Services for co-occurring mental and physical disabilities
A22: (3) Employment services | AM22: Recreational and social activities
A23: (4) Obtaining access to other needed services | AM23: Educational services
A24: Transportation Plan §214 (d)(3) | AM24: Employment services
A25: For services provided off-site, (not at the project site), provide a detailed narrative on what transportation options will be available to tenants in order to provide them with reasonable access to these services. Reasonable access is access that does not require walking more than ½ mile. | AM25: Access to other services
A27: Services Competency §214 (d)(4)
A28: (A) Describe how the services are linguistically and culturally competent for persons of different races, ethnicities, sexual orientations, gender identities, and gender expressions. (B) Explain how services will be provided to HHC tenants who do not speak English, or have other communication barriers, including sensory disabilities. (C) Explain how communication among the services providers, the property manager, and these tenants will be facilitated.
A30: Estimated Itemized Budget §214(d)(5)
A31: Provide a line item Supportive Services Budget for project using format below. Complete both income and expense portions of the budget. Include all costs associated with implementing your Supportive Services Plan, including any in-kind services. Include income and expenses for Sponsor or LSP staff positions, and also any staff positions of partnering organizations who have committed time to the project. Don't include costs associated with providing services in non-HHC assisted units. If costs are associated with both HHC & non-HHC assisted units, include only that portion of costs associated with HHC assisted units.
A32: Income Source/Program Name | Q32: Amount | V32: Type | AA32: Status | AI32: % of Total Budget
AI33: =IF($Q$37=0,0,Q33/$Q$37) -> 0
AI34: =IF($Q$37=0,0,Q34/$Q$37) -> 0
AI35: 0
AI36: 0
A37: Total Revenue: | Q37: =SUM(Q33:U36) -> 0 | AI37: 0
A38: Expense Item | Q38: Amount | V38: Type | AA38: Status | AI38: % of Total Budget
A39: Staff Salaries: List by title of position. (This list must match the Staffing Chart above.)
A40: Staff Position | L40: FTE: | AI40: =IF($Q$45=0,0,Q40/$Q$45) -> 0
A41: Staff Position | L41: FTE: | AI41: =IF($Q$45=0,0,Q41/$Q$45) -> 0
A42: Staff Position | L42: FTE: | AI42: =IF($Q$45=0,0,Q42/$Q$45) -> 0
A43: Staff Position | L43: FTE: | AI43: 0
A44: Fringe Benefits | AI44: 0
A45: Total Staff Expenses | Q45: =SUM(Q40:U44) -> 0 | AI45: 0
A46: Tenant Transportation | AI46: =IF($Q$57=0,0,Q46/$Q$57) -> 0
A47: Equipment | AI47: =IF($Q$57=0,0,Q47/$Q$57) -> 0
A48: Supplies | AI48: 0
A49: Travel | AI49: 0
A50: Office Rent/Occupancy Costs (don't include rent/leasing costs for SH units) | AI50: 0
A51: Training | AI51: 0
A52: Consultants: List by Function | AI52: 0
A53: Subcontractors/Partners (list by Entity & Service Type) | AI53: 0
A54: Other Expenses (type in expense description) | AI54: 0
A55: Other Expenses (type in expense description) | AI55: 0
A56: Other Expenses (type in expense description) | AI56: 0
A57: Total Expenses | Q57: =SUM(Q45:U56) -> 0 | AI57: 0
A58: Supportive Services Cost Per Unit: Permanent supportive housing best practice suggests a range between $5,000 - $10,000 annually in services per household, depending upon the intensity of the needs of the target population.
A59: Budget Narrative and Funding Commitments
A60: 1. Describe how budgeted amts. are adequate to provide services described in Supportive Services Plan and in Services Staffing Table:
A62: 2. Document committed funds with letter from committing agency that includes the following. Documented services/funding must appear in Supportive Services Budget Table.
A63: a) Project name; b) Description of services to be funded or provided; c) Dollar value of funds or in-kind services. If cash is provided, state funding source; d) Funding term or service provision; e) A description and history of agency/organization providing funding or services.
A64: 3. For funding that is not yet committed, specifically describe your experience filling major services funding gaps in similar housing.
A66: 4. Describe in specific terms the plan to fill any service gaps that occur during project life due to expiration of grants, partner withdrawals, cancellation of a commitment or any other reason. Describe experience filling service gaps caused by loss of major funding sources.
A68: Collaboration of Supportive Services and Property Management Staff §214 (d)(6)
A69: Describe how the supportive services staff and property management staff will collaborate to prevent evictions, adopt and ensure compliance with harm reduction principles, and facilitate the implementation of reasonable accommodation policies from rent-up to on-going Project operations.
A71: Communication Protocols §214 (d)(7)
A72: Provide a detailed narrative on the communication protocols to be utilized by the services providers and the property manager.
A74: Provider-to-Client Staff Ratio §214 (d)(8)
A75: Service provider will maintain at least a 1:20 provider-to-client staff Ratio?
A76: File Name: | D76: ='Application Checklist'!A39 -> D3 | F76: Org. Chart/ Resumes | K76: Attach copies provider org. charts, staff resumes, and duty statements. | AE76: Attached and on USB?
A77: Project Physical Design §214 (d)(9)
A78: Provide a detailed narrative on how the physical design of the Project fosters tenant engagement, on-site supportive services provision, security and safety, and sustainability of equipment, furnishings, and fixtures.
A80: Other Additional Information §214 (d)(10)
A81: Provide any other information necessary to evaluate the supportive services to be offered consistent with HHC Program requirements.

Sheet E - Certification
A1: Certifications
A2: State of California
A3: On behalf of the entity identified in the signature block below, I certify that:
A4: 1. The information, statements and attachments included in this application are, to the best of my knowledge and belief, true and correct.
A5: 2. I possess the legal authority to submit this application on behalf of the entity identified in the signature block.
A6: 3. As of the date of application, the Project, or the real property on which the Project is proposed (Property) is not part to or the subject of any claim or action at the State or Federal appellate level.
A7: 4. I have disclosed and described below any claim or action undertaken which affects or potentially affects the feasibility of the Project.
A8: In addition, I acknowledge that all information in this application and attachments is public, and may be disclosed by the State.
A10: Printed Name | K10: Title of Signatory | U10: Signature | AK10: Date

Sheet Application Support
A1: Application Development Team (ADT) Support Form | AK1: ='A - Applicant & Min Requirement'!AI1 -> Rev. 7/3/19
A2: Please complete the "yellow" cells in the form below and email entire workbook to: AppSupport@hcd.ca.gov. A member of the Application Development Team will respond to your request ASAP.
A3: Full Name: | W3: Date Requested: | AE3: Application Version Date:
A4: Organization: | P4: Email: | AC4: Contact Phone:
A5: Justification:
A6: Issue # | C6: Program Name & Round | F6: Tab | J6: Section | P6: Cell# | R6: Update/Comment | AD6: Urgency | AG6: ADT Status | AJ6: Status Date | AM6: Requestor | AN6: Email | AO6: Phone | AP6: App Version
A7: 1 | AM7: =IF(C7="","",$D$3) ->  | AN7: =IF(C7="","",$R$4) ->  | AO7: =IF(C7="","",$AG$4) ->  | AP7: =IF(C7="","",$AI$3) -> 
A8: 2
A9: 3
A10: 4
A11: 5
A12: 6
A13: 7
A14: 8
A15: 9
A16: 10
A17: 11
A18: 12
A19: 13
A20: 14
A21: 15
A22: 16
A23: 17
A24: 18
A25: 19
A26: 20
A27: 21
A28: 22
A29: 23
A30: 24
A31: 25

Sheet Sheet2 (hidden)
A1: 0 | B1: 0.15
A2: 1 | B2: 0.15
A3: 2 | B3: 0.15
A4: 3 | B4: 0.15
A5: 4+ | B5: 0.15

Sheet Dropdowns (hidden)
A1: County | C1: CoC# | D1: CoC PIT | E1: County PIT | F1: Target Population
A2: Alameda | B2: Oakland/Alameda County CoC | C2: CA-502 | D2: 5496 | E2: 4657 | F2: Chronically homeless or is Homeless and a High-cost health user upon initial eligibility
A3: Alpine | B3: Inyo, Mono, Alpine Counties CoC | C3: CA-613 | D3: 1493 | E3: 0 | F3: Number of households similar to the Target Population applicant has administered rental subsidies for in the last 3 years: | G3: 500+ Households | H3: 4+ Projects | I3: =IF('C - Selection Criteria'!K40=Dropdowns!F14,G3,IF('C - Selection Criteria'!K40=#REF!,H3)) -> 
A4: Amador | B4: Amador, Calaveras, Tuolumne and Mariposa Counties CoC | C4: CA-526 | D4: 398 | E4: 149
A5: Butte | B5: Chico/Paradise/Butte County CoC | C5: CA-519 | D5: 1125 | E5: 1195
A6: Calaveras | B6: Amador, Calaveras, Tuolumne and Mariposa Counties CoC | C6: CA-526 | D6: 398 | E6: 19
A7: Colusa | B7: Colusa, Glenn, Trinity Counties CoC | C7: CA-523 | D7: 268 | E7: 5
A8: Contra Costa | B8: Richmond/Contra Costa County CoC | C8: CA-505 | D8: 2234 | E8: 1607
A9: Del Norte | B9: Redding/Shasta, Siskiyou, Lassen, Plumas, Del Norte, Modoc, Sierra Counties CoC | C9: CA-516 | D9: 1149 | E9: 128 | F9: Project Type
A10: El Dorado | B10: El Dorado County CoC | C10: CA-525 | D10: 645 | E10: 602 | F10: Acquisition
A11: Fresno | B11: Fresno/Madera County CoC | C11: CA-514 | D11: 2144 | E11: 1572 | F11: New Construction
A12: Glenn | B12: Colusa, Glenn, Trinity Counties CoC | C12: CA-523 | D12: 268 | E12: 94 | F12: Rehabilitation
A13: Humboldt | B13: Humboldt County CoC | C13: CA-522 | D13: 703 | E13: 759 | F13: Development or Capitalized Operating Subsidy Reserves (COSR)
A14: Imperial | B14: Imperial County CoC | C14: CA-613 | D14: 1493 | E14: 1154 | F14: Rental Assistance
A15: Inyo | B15: Inyo, Mono, Alpine Counties CoC | C15: CA-613 | D15: 1493 | E15: 120 | F15: 1
A16: Kern | B16: Bakersfield/Kern County CoC | C16: CA-604 | D16: 885 | E16: 810 | F16: Number of projects applicant has developed and/or administered in the last 3 Years:
A17: Kings | B17: Visalia, Kings, Tulare Counties CoC | C17: CA-518 | D17: 1129 | E17: 187 | F17: Number of households applicant has administered rental subsidies for in the last 3 years:
A18: Lake | B18: Lake County CoC | C18: CA-529 | D18: 615 | E18: 401 | F18: 2
A19: Lassen | B19: Redding/Shasta, Siskiyou, Lassen, Plumas, Del Norte, Modoc, Sierra Counties CoC | C19: CA-516 | D19: 1149 | E19: 107 | F19: Number of projects applicant has developed and/or administered in the last 3 Years that are comparable in scale and scope to the proposed project and Target Population: | G19: 1 | I19: Dropdown
A20: Los Angeles | B20: Los Angeles City & County CoC | C20: CA-600 | D20: 49955 | E20: 54227 | F20: Number of households similar to the Target Population applicant has administered rental subsidies for in the last 3 years: | G20: 500+ Households | H20: 4+ Projects | I20: 4+ Projects
A21: Madera | B21: Fresno/Madera County CoC | C21: CA-514 | D21: 2144 | E21: 444 | G21: 300+ Households | H21: 2+ Projects | I21: 2+ Projects
A22: Marin | B22: Marin County CoC | C22: CA-507 | D22: 1095 | E22: 1117 | G22: 100+ Households | H22: 1 Project | I22: 1 Project
A23: Mariposa | B23: Amador, Calaveras, Tuolumne and Mariposa Counties CoC | C23: CA-526 | D23: 398 | E23: 38 | G23: 2
A24: Mendocino | B24: Mendocino County CoC | C24: CA-509 | D24: 880 | E24: 1238 | G24: 500+ Households | H24: 4+ Projects | I24: 4+ Projects
A25: Merced | B25: Merced City & County CoC | C25: CA-520 | D25: 514 | E25: 454 | G25: 300+ Households | H25: 2+ Projects | I25: 2+ Projects
A26: Modoc | B26: Redding/Shasta, Siskiyou, Lassen, Plumas, Del Norte, Modoc, Sierra Counties CoC | C26: CA-516 | D26: 1149 | E26: 12 | G26: 100+ Households | H26: 1 Project | I26: 1 Project
A27: Mono | B27: Inyo, Mono, Alpine Counties CoC | C27: CA-613 | D27: 1493 | E27: 1
A28: Monterey | B28: Salinas/Monterey, San Benito Counties CoC | C28: CA-506 | D28: 3299 | E28: 2837
A29: Napa | B29: Napa City & County CoC | C29: CA-517 | D29: 322 | E29: 315
A30: Nevada | B30: Nevada County CoC | C30: CA-531 | D30: 316 | E30: 316
A31: Orange | B31: Santa Ana/Anaheim/Orange County CoC | C31: CA-602 | D31: 4955 | E31: 4792
A32: Placer | B32: Roseville/Rocklin/Placer Counties CoC | C32: CA-515 | D32: 663 | E32: 663
A33: Plumas | B33: Redding/Shasta, Siskiyou, Lassen, Plumas, Del Norte, Modoc, Sierra Counties CoC | C33: CA-516 | D33: 1149 | E33: 47
A34: Riverside | B34: Riverside City & County CoC | C34: CA-608 | D34: 2316 | E34: 2406
A35: Sacramento | B35: Sacramento City & County CoC | C35: CA-503 | D35: 3621 | E35: 3665
A36: San Benito | B36: Salinas/Monterey, San Benito Counties CoC | C36: CA-506 | D36: 3299 | E36: 527
A37: San Bernardino | B37: San Bernardino City & County CoC | C37: CA-609 | D37: 2118 | E37: 1866
A38: San Diego | B38: San Diego City and County CoC | C38: CA-601 | D38: 8576 | E38: 9160
A39: San Francisco | B39: San Francisco CoC | C39: CA-501 | D39: 6857 | E39: 6858
A40: San Joaquin | B40: Stockton/San Joaquin County CoC | C40: CA-511 | D40: 1685 | E40: 1542
A41: San Luis Obispo | B41: San Luis Obispo County CoC | C41: CA-614 | D41: 1095 | E41: 1125
A42: San Mateo | B42: Daly/San Mateo County CoC | C42: CA-512 | D42: 1238 | E42: 1253
A43: Santa Barbara | B43: Santa Maria/Santa Barbara County CoC | C43: CA-603 | D43: 1706 | E43: 1860
A44: Santa Clara | B44: San Jose/Santa Clara City & County CoC | C44: CA-500 | D44: 7254 | E44: 7394
A45: Santa Cruz | B45: Watsonville/Santa Cruz City & County CoC | C45: CA-508 | D45: 2320 | E45: 2249
A46: Shasta | B46: Redding/Shasta, Siskiyou, Lassen, Plumas, Del Norte, Modoc, Sierra Counties CoC | C46: CA-516 | D46: 1149 | E46: 640
A47: Sierra | B47: Redding/Shasta, Siskiyou, Lassen, Plumas, Del Norte, Modoc, Sierra Counties CoC | C47: CA-516 | D47: 1149 | E47: 0
A48: Siskiyou | B48: Redding/Shasta, Siskiyou, Lassen, Plumas, Del Norte, Modoc, Sierra Counties CoC | C48: CA-516 | D48: 1149 | E48: 0
A49: Solano | B49: Vallejo/Solano County CoC | C49: CA-518 | D49: 1129 | E49: 1232
A50: Sonoma | B50: Santa Rosa/Petaluma/Sonoma County CoC | C50: CA-504 | D50: 2996 | E50: 2835
A51: Stanislaus | B51: Turlock/Modesto/Stanislaus County CoC | C51: CA-510 | D51: 1356 | E51: 1661
A52: Sutter | B52: Yuba City & County/Sutter County CoC | C52: CA-524 | D52: 765 | E52: 331
A53: Tehama | B53: Tehama County CoC | C53: CA-527 | D53: 125 | E53: 124
A54: Trinity | B54: Colusa, Glenn, Trinity Counties CoC | C54: CA-523 | D54: 268 | E54: 77
A55: Tulare | B55: Visalia, Kings, Tulare Counties CoC | C55: CA-518 | D55: 1129 | E55: 666
A56: Tuolumne | B56: Amador, Calaveras, Tuolumne and Mariposa Counties CoC | C56: CA-526 | D56: 398 | E56: 161
A57: Ventura | B57: Oxnard/San Buenaventura/Ventura County CoC | C57: CA-611 | D57: 1308 | E57: 1152
A58: Yolo | B58: Davis/Woodland/Yolo County CoC | C58: CA-521 | D58: 448 | E58: 459
A59: Yuba | B59: Yuba City & County/Sutter County CoC | C59: CA-524 | D59: 765 | E59: 429

Sheet PU FMR Amts (hidden)
A1: Level* | B1: Efficiency | C1: 1 BR | D1: 2 BR | E1: 3 BR | F1: 4+ BR | G1: Level* | H1: Efficiency | I1: 1 BR | J1: 2 BR | K1: 3 BR | L1: 4+ BR | M1: Locality Name | N1: 0 | O1: 1 | P1: 2 | Q1: 3 | R1: 4+
A2: ALAMEDA30% | B2: 132862 | C2: 132862 | D2: 132862 | E2: 132862 | F2: 132862 | G2: ALAMEDA30% | H2: 186006 | I2: 186006 | J2: 186006 | K2: 186006 | L2: 186006 | M2: Alameda | N2: 1409 | O2: 1706 | P2: 2126 | Q2: 2925 | R2: 3587
A3: ALAMEDA25% | B3: 148563.1561 | C3: 149571.4872 | D3: 153028.6225 | E3: 156053.6158 | F3: 158790.5146 | G3: ALAMEDA25% | H3: 201707 | I3: 202715 | J3: 206173 | K3: 209198 | L3: 211935 | M3: Alpine | N3: 657 | O3: 734 | P3: 965 | Q3: 1378 | R3: 1551
A4: ALAMEDA20% | B4: 164120.2648 | C4: 166280.9744 | D4: 173051.1976 | E4: 179245.2317 | F4: 184574.9819 | G4: ALAMEDA20% | H4: 217264 | I4: 219425 | J4: 226195 | K4: 232389 | L4: 237719 | M4: Amador | N4: 814 | O4: 819 | P4: 1084 | Q4: 1567 | R4: 1789
A5: ALAMEDA15% | B5: 179821.4209 | C5: 183134.5089 | D5: 193217.8201 | E5: 202436.8475 | F5: 210503.4965 | G5: ALAMEDA15% | H5: 232965 | I5: 236279 | J5: 246362 | K5: 255581 | L5: 263647 | M5: Butte | N5: 808 | O5: 894 | P5: 1144 | Q5: 1654 | R5: 1921
A6: ALPINE30% | B6: 132862 | C6: 132862 | D6: 132862 | E6: 132862 | F6: 132862 | G6: ALPINE30% | H6: 186006 | I6: 186006 | J6: 186006 | K6: 186006 | L6: 186006 | M6: Calaveras | N6: 633 | O6: 799 | P6: 930 | Q6: 1345 | R6: 1634
A7: ALPINE25% | B7: 142945.3112 | C7: 143665.5478 | D7: 145826.2573 | E7: 147986.9669 | F7: 149571.4872 | G7: ALPINE25% | H7: 196089 | I7: 196810 | J7: 198970 | K7: 201131 | L7: 202715 | M7: Colusa | N7: 608 | O7: 736 | P7: 893 | Q7: 1291 | R7: 1569
A8: ALPINE20% | B8: 153028.6225 | C8: 154469.0955 | D8: 158790.5146 | E8: 162967.8864 | F8: 166280.9744 | G8: ALPINE20% | H8: 206173 | I8: 207613 | J8: 211935 | K8: 216112 | L8: 219425 | M8: Contra Costa | N8: 1409 | O8: 1706 | P8: 2126 | Q8: 2925 | R8: 3587
A9: ALPINE15% | B9: 163111.9337 | C9: 165272.6433 | D9: 171754.7719 | E9: 177948.8059 | F9: 183134.5089 | G9: ALPINE15% | H9: 216256 | I9: 218417 | J9: 224899 | K9: 231093 | L9: 236279 | M9: Del Norte | N9: 643 | O9: 749 | P9: 945 | Q9: 1312 | R9: 1516
A10: AMADOR30% | B10: 132862 | C10: 132862 | D10: 132862 | E10: 132862 | F10: 132862 | G10: AMADOR30% | H10: 186006 | I10: 186006 | J10: 186006 | K10: 186006 | L10: 186006 | M10: El Dorado | N10: 853 | O10: 968 | P10: 1220 | Q10: 1764 | R10: 2143
A11: AMADOR25% | B11: 142081.0274 | C11: 142657.2166 | D11: 144673.8789 | E11: 146546.4938 | F11: 148131.0142 | G11: AMADOR25% | H11: 195225 | I11: 195801 | J11: 197818 | K11: 199690 | L11: 201275 | M11: Fresno | N11: 668 | O11: 769 | P11: 956 | Q11: 1364 | R11: 1584
A12: AMADOR20% | B12: 151300.0548 | C12: 152596.4806 | D12: 156485.7577 | E12: 160230.9876 | F12: 163400.0283 | G12: AMADOR20% | H12: 204444 | I12: 205740 | J12: 209630 | K12: 213375 | L12: 216544 | M12: Glenn | N12: 569 | O12: 632 | P12: 836 | Q12: 1047 | R12: 1130
A13: AMADOR15% | B13: 160519.0822 | C13: 162391.6972 | D13: 168297.6366 | E13: 173915.4815 | F13: 178669.0425 | G13: AMADOR15% | H13: 213663 | I13: 215536 | J13: 221442 | K13: 227059 | L13: 231813 | M13: Humboldt | N13: 665 | O13: 765 | P13: 998 | Q13: 1443 | R13: 1660
A14: BUTTE30% | B14: 132862 | C14: 132862 | D14: 132862 | E14: 132862 | F14: 132862 | G14: BUTTE30% | H14: 186006 | I14: 186006 | J14: 186006 | K14: 186006 | L14: 186006 | M14: Imperial | N14: 612 | O14: 733 | P14: 953 | Q14: 1247 | R14: 1657
A15: BUTTE25% | B15: 141216.7436 | C15: 141936.9801 | D15: 143665.5478 | E15: 145394.1154 | F15: 146834.5884 | G15: BUTTE25% | H15: 194361 | I15: 195081 | J15: 196810 | K15: 198538 | L15: 199979 | M15: Inyo | N15: 772 | O15: 776 | P15: 929 | Q15: 1251 | R15: 1256
A16: BUTTE20% | B16: 149571.4872 | C16: 150867.9129 | D16: 154469.0955 | E16: 157782.1835 | F16: 160663.1295 | G16: BUTTE20% | H16: 202715 | I16: 204012 | J16: 207613 | K16: 210926 | L16: 213807 | M16: Kern | N16: 700 | O16: 711 | P16: 926 | Q16: 1334 | R16: 1587
A17: BUTTE15% | B17: 158070.2781 | C17: 159798.8457 | D17: 165272.6433 | E17: 170314.2989 | F17: 174635.718 | G17: BUTTE15% | H17: 211214 | I17: 212943 | J17: 218417 | K17: 223458 | L17: 227780 | M17: Kings | N17: 778 | O17: 811 | P17: 987 | Q17: 1427 | R17: 1559
A18: CALAVERAS30% | B18: 132862 | C18: 132862 | D18: 132862 | E18: 132862 | F18: 132862 | G18: CALAVERAS30% | H18: 186006 | I18: 186006 | J18: 186006 | K18: 186006 | L18: 186006 | M18: Lake | N18: 617 | O18: 735 | P18: 960 | Q18: 1388 | R18: 1517
A19: CALAVERAS25% | B19: 142369.122 | C19: 143089.3585 | D19: 145106.0208 | E19: 146978.6357 | F19: 148563.1561 | G19: CALAVERAS25% | H19: 195513 | I19: 196233 | J19: 198250 | K19: 200123 | L19: 201707 | M19: Lassen | N19: 577 | O19: 641 | P19: 848 | Q19: 1226 | R19: 1356
A20: CALAVERAS20% | B20: 151876.244 | C20: 153316.7171 | D20: 157205.9943 | E20: 161095.2715 | F20: 164264.3121 | G20: CALAVERAS20% | H20: 205020 | I20: 206461 | J20: 210350 | K20: 214239 | L20: 217408 | M20: Los Angeles | N20: 1158 | O20: 1384 | P20: 1791 | Q20: 2401 | R20: 2641
A21: CALAVERAS15% | B21: 161383.3661 | C21: 163400.0283 | D21: 169450.015 | E21: 175211.9072 | F21: 180109.5155 | G21: CALAVERAS15% | H21: 214527 | I21: 216544 | J21: 222594 | K21: 228356 | L21: 233254 | M21: Madera | N21: 766 | O21: 771 | P21: 1020 | Q21: 1450 | R21: 1609
A22: COLUSA30% | B22: 132862 | C22: 132862 | D22: 132862 | E22: 132862 | F22: 132862 | G22: COLUSA30% | H22: 186006 | I22: 186006 | J22: 186006 | K22: 186006 | L22: 186006 | M22: Marin | N22: 2069 | O22: 2561 | P22: 3170 | Q22: 4153 | R22: 4392
A23: COLUSA25% | B23: 141072.6963 | C23: 141504.8382 | D23: 143377.4531 | E23: 144961.9735 | F23: 146402.4465 | G23: COLUSA25% | H23: 194217 | I23: 194649 | J23: 196521 | K23: 198106 | L23: 199546 | M23: Mariposa | N23: 662 | O23: 736 | P23: 973 | Q23: 1337 | R23: 1709
A24: COLUSA20% | B24: 149139.3453 | C24: 150291.7237 | D24: 153892.9063 | E24: 157061.947 | F24: 159942.893 | G24: COLUSA20% | H24: 202283 | I24: 203436 | J24: 207037 | K24: 210206 | L24: 213087 | M24: Mendocino | N24: 742 | O24: 815 | P24: 1078 | Q24: 1527 | R24: 1735
A25: COLUSA15% | B25: 157350.0416 | C25: 159078.6092 | D25: 164408.3594 | E25: 169305.9677 | F25: 173483.3395 | G25: COLUSA15% | H25: 210494 | I25: 212223 | J25: 217552 | K25: 222450 | L25: 226627 | M25: Merced | N25: 579 | O25: 680 | P25: 839 | Q25: 1213 | R25: 1465
A26: CONTRA COSTA30% | B26: 132862 | C26: 132862 | D26: 132862 | E26: 132862 | F26: 132862 | G26: CONTRA COSTA30% | H26: 186006 | I26: 186006 | J26: 186006 | K26: 186006 | L26: 186006 | M26: Modoc | N26: 476 | O26: 529 | P26: 700 | Q26: 1012 | R26: 1125
A27: CONTRA COSTA25% | B27: 148563.1561 | C27: 149571.4872 | D27: 153028.6225 | E27: 156053.6158 | F27: 158790.5146 | G27: CONTRA COSTA25% | H27: 201707 | I27: 202715 | J27: 206173 | K27: 209198 | L27: 211935 | M27: Mono | N27: 803 | O27: 945 | P27: 1250 | Q27: 1606 | R27: 2009
A28: CONTRA COSTA20% | B28: 164120.2648 | C28: 166280.9744 | D28: 173051.1976 | E28: 179245.2317 | F28: 184574.9819 | G28: CONTRA COSTA20% | H28: 217264 | I28: 219425 | J28: 226195 | K28: 232389 | L28: 237719 | M28: Monterey | N28: 1089 | O28: 1240 | P28: 1540 | Q28: 2219 | R28: 2378
A29: CONTRA COSTA15% | B29: 179821.4209 | C29: 183134.5089 | D29: 193217.8201 | E29: 202436.8475 | F29: 210503.4965 | G29: CONTRA COSTA15% | H29: 232965 | I29: 236279 | J29: 246362 | K29: 255581 | L29: 263647 | M29: Napa | N29: 1095 | O29: 1289 | P29: 1705 | Q29: 2465 | R29: 2685
A30: DEL NORTE30% | B30: 132862 | C30: 132862 | D30: 132862 | E30: 132862 | F30: 132862 | G30: DEL NORTE30% | H30: 186006 | I30: 186006 | J30: 186006 | K30: 186006 | L30: 186006 | M30: Nevada | N30: 778 | O30: 916 | P30: 1211 | Q30: 1751 | R30: 1978
A31: DEL NORTE25% | B31: 141072.6963 | C31: 141504.8382 | D31: 143377.4531 | E31: 144961.9735 | F31: 146402.4465 | G31: DEL NORTE25% | H31: 194217 | I31: 194649 | J31: 196521 | K31: 198106 | L31: 199546 | M31: Orange | N31: 1415 | O31: 1632 | P31: 2037 | Q31: 2862 | R31: 3304
A32: DEL NORTE20% | B32: 149139.3453 | C32: 150291.7237 | D32: 153892.9063 | E32: 157061.947 | F32: 159942.893 | G32: DEL NORTE20% | H32: 202283 | I32: 203436 | J32: 207037 | K32: 210206 | L32: 213087 | M32: Placer | N32: 853 | O32: 968 | P32: 1220 | Q32: 1764 | R32: 2143
A33: DEL NORTE15% | B33: 157350.0416 | C33: 159078.6092 | D33: 164408.3594 | E33: 169305.9677 | F33: 173483.3395 | G33: DEL NORTE15% | H33: 210494 | I33: 212223 | J33: 217552 | K33: 222450 | L33: 226627 | M33: Plumas | N33: 612 | O33: 744 | P33: 899 | Q33: 1181 | R33: 1327
A34: EL DORADO30% | B34: 132862 | C34: 132862 | D34: 132862 | E34: 132862 | F34: 132862 | G34: EL DORADO30% | H34: 186006 | I34: 186006 | J34: 186006 | K34: 186006 | L34: 186006 | M34: Riverside | N34: 826 | O34: 986 | P34: 1232 | Q34: 1717 | R34: 2132
A35: EL DORADO25% | B35: 143377.4531 | C35: 144097.6897 | D35: 146402.4465 | E35: 148563.1561 | F35: 150291.7237 | G35: EL DORADO25% | H35: 196521 | I35: 197242 | J35: 199546 | K35: 201707 | L35: 203436 | M35: Sacramento | N35: 853 | O35: 968 | P35: 1220 | Q35: 1764 | R35: 2143
A36: EL DORADO20% | B36: 153892.9063 | C36: 155477.4266 | D36: 159942.893 | E36: 164264.3121 | F36: 167721.4474 | G36: EL DORADO20% | H36: 207037 | I36: 208621 | J36: 213087 | K36: 217408 | L36: 220865 | M36: San Benito | N36: 1314 | O36: 1323 | P36: 1750 | Q36: 2530 | R36: 3074
A37: EL DORADO15% | B37: 164552.4067 | C37: 166713.1163 | D37: 173483.3395 | E37: 179821.4209 | F37: 185295.2184 | G37: EL DORADO15% | H37: 217696 | I37: 219857 | J37: 226627 | K37: 232965 | L37: 238439 | M37: San Bernardino | N37: 826 | O37: 986 | P37: 1232 | Q37: 1717 | R37: 2132
A38: FRESNO30% | B38: 132862 | C38: 132862 | D38: 132862 | E38: 132862 | F38: 132862 | G38: FRESNO30% | H38: 186006 | I38: 186006 | J38: 186006 | K38: 186006 | L38: 186006 | M38: San Diego | N38: 1333 | O38: 1490 | P38: 1938 | Q38: 2776 | R38: 3404
A39: FRESNO25% | B39: 141072.6963 | C39: 141504.8382 | D39: 143377.4531 | E39: 144961.9735 | F39: 146402.4465 | G39: FRESNO25% | H39: 194217 | I39: 194649 | J39: 196521 | K39: 198106 | L39: 199546 | M39: San Francisco | N39: 2069 | O39: 2561 | P39: 3170 | Q39: 4153 | R39: 4392
A40: FRESNO20% | B40: 149139.3453 | C40: 150291.7237 | D40: 153892.9063 | E40: 157061.947 | F40: 159942.893 | G40: FRESNO20% | H40: 202283 | I40: 203436 | J40: 207037 | K40: 210206 | L40: 213087 | M40: San Joaquin | N40: 702 | O40: 826 | P40: 1092 | Q40: 1579 | R40: 1918
A41: FRESNO15% | B41: 157350.0416 | C41: 159078.6092 | D41: 164408.3594 | E41: 169305.9677 | F41: 173483.3395 | G41: FRESNO15% | H41: 210494 | I41: 212223 | J41: 217552 | K41: 222450 | L41: 226627 | M41: San Luis Obispo | N41: 1059 | O41: 1196 | P41: 1542 | Q41: 2230 | R41: 2708
A42: GLENN30% | B42: 132862 | C42: 132862 | D42: 132862 | E42: 132862 | F42: 132862 | G42: GLENN30% | H42: 186006 | I42: 186006 | J42: 186006 | K42: 186006 | L42: 186006 | M42: San Mateo | N42: 2069 | O42: 2561 | P42: 3170 | Q42: 4153 | R42: 4392
A43: GLENN25% | B43: 141072.6963 | C43: 141504.8382 | D43: 143377.4531 | E43: 144961.9735 | F43: 146402.4465 | G43: GLENN25% | H43: 194217 | I43: 194649 | J43: 196521 | K43: 198106 | L43: 199546 | M43: Santa Barbara | N43: 1403 | O43: 1667 | P43: 1951 | Q43: 2625 | R43: 3040
A44: GLENN20% | B44: 149139.3453 | C44: 150291.7237 | D44: 153892.9063 | E44: 157061.947 | F44: 159942.893 | G44: GLENN20% | H44: 202283 | I44: 203436 | J44: 207037 | K44: 210206 | L44: 213087 | M44: Santa Clara | N44: 1952 | O44: 2316 | P44: 2839 | Q44: 3829 | R44: 4394
A45: GLENN15% | B45: 157350.0416 | C45: 159078.6092 | D45: 164408.3594 | E45: 169305.9677 | F45: 173483.3395 | G45: GLENN15% | H45: 210494 | I45: 212223 | J45: 217552 | K45: 222450 | L45: 226627 | M45: Santa Cruz | N45: 1567 | O45: 1844 | P45: 2439 | Q45: 3241 | R45: 3701
A46: HUMBOLDT30% | B46: 132862 | C46: 132862 | D46: 132862 | E46: 132862 | F46: 132862 | G46: HUMBOLDT30% | H46: 186006 | I46: 186006 | J46: 186006 | K46: 186006 | L46: 186006 | M46: Shasta | N46: 659 | O46: 758 | P46: 980 | Q46: 1417 | R46: 1721
A47: HUMBOLDT25% | B47: 141072.6963 | C47: 141504.8382 | D47: 143377.4531 | E47: 144961.9735 | F47: 146402.4465 | G47: HUMBOLDT25% | H47: 194217 | I47: 194649 | J47: 196521 | K47: 198106 | L47: 199546 | M47: Sierra | N47: 881 | O47: 984 | P47: 1294 | Q47: 1848 | R47: 2079
A48: HUMBOLDT20% | B48: 149139.3453 | C48: 150291.7237 | D48: 153892.9063 | E48: 157061.947 | F48: 159942.893 | G48: HUMBOLDT20% | H48: 202283 | I48: 203436 | J48: 207037 | K48: 210206 | L48: 213087 | M48: Siskiyou | N48: 540 | O48: 635 | P48: 840 | Q48: 1156 | R48: 1349
A49: HUMBOLDT15% | B49: 157350.0416 | C49: 159078.6092 | D49: 164408.3594 | E49: 169305.9677 | F49: 173483.3395 | G49: HUMBOLDT15% | H49: 210494 | I49: 212223 | J49: 217552 | K49: 222450 | L49: 226627 | M49: Solano | N49: 983 | O49: 1184 | P49: 1443 | Q49: 2086 | R49: 2531
A50: IMPERIAL30% | B50: 132862 | C50: 132862 | D50: 132862 | E50: 132862 | F50: 132862 | G50: IMPERIAL30% | H50: 186006 | I50: 186006 | J50: 186006 | K50: 186006 | L50: 186006 | M50: Sonoma | N50: 1254 | O50: 1447 | P50: 1887 | Q50: 2728 | R50: 3298
A51: IMPERIAL25% | B51: 141072.6963 | C51: 141504.8382 | D51: 143377.4531 | E51: 144961.9735 | F51: 146402.4465 | G51: IMPERIAL25% | H51: 194217 | I51: 194649 | J51: 196521 | K51: 198106 | L51: 199546 | M51: Stanislaus | N51: 722 | O51: 803 | P51: 1016 | Q51: 1451 | R51: 1715
A52: IMPERIAL20% | B52: 149139.3453 | C52: 150291.7237 | D52: 153892.9063 | E52: 157061.947 | F52: 159942.893 | G52: IMPERIAL20% | H52: 202283 | I52: 203436 | J52: 207037 | K52: 210206 | L52: 213087 | M52: Sutter | N52: 670 | O52: 674 | P52: 878 | Q52: 1269 | R52: 1542
A53: IMPERIAL15% | B53: 157350.0416 | C53: 159078.6092 | D53: 164408.3594 | E53: 169305.9677 | F53: 173483.3395 | G53: IMPERIAL15% | H53: 210494 | I53: 212223 | J53: 217552 | K53: 222450 | L53: 226627 | M53: Tehama | N53: 599 | O53: 633 | P53: 837 | Q53: 1142 | R53: 1151
A54: INYO30% | B54: 132862 | C54: 132862 | D54: 132862 | E54: 132862 | F54: 132862 | G54: INYO30% | H54: 186006 | I54: 186006 | J54: 186006 | K54: 186006 | L54: 186006 | M54: Trinity | N54: 575 | O54: 639 | P54: 845 | Q54: 1222 | R54: 1358
A55: INYO25% | B55: 141936.9801 | C55: 142801.2639 | D55: 144673.8789 | E55: 146546.4938 | F55: 148131.0142 | G55: INYO25% | H55: 195081 | I55: 195945 | J55: 197818 | K55: 199690 | L55: 201275 | M55: Tulare | N55: 695 | O55: 699 | P55: 925 | Q55: 1291 | R55: 1525
A56: INYO20% | B56: 151156.0075 | C56: 152596.4806 | D56: 156485.7577 | E56: 160086.9403 | F56: 163255.981 | G56: INYO20% | H56: 204300 | I56: 205740 | J56: 209630 | K56: 213231 | L56: 216400 | M56: Tuolumne | N56: 660 | O56: 797 | P56: 992 | Q56: 1365 | R56: 1616
A57: INYO15% | B57: 160375.0349 | C57: 162391.6972 | D57: 168297.6366 | E57: 173771.4341 | F57: 178524.9952 | G57: INYO15% | H57: 213519 | I57: 215536 | J57: 221442 | K57: 226915 | L57: 231669 | M57: Ventura | N57: 1153 | O57: 1362 | P57: 1795 | Q57: 2518 | R57: 3019
A58: KERN30% | B58: 132862 | C58: 132862 | D58: 132862 | E58: 132862 | F58: 132862 | G58: KERN30% | H58: 186006 | I58: 186006 | J58: 186006 | K58: 186006 | L58: 186006 | M58: Yolo | N58: 953 | O58: 1015 | P58: 1342 | Q58: 1935 | R58: 2357
A59: KERN25% | B59: 141072.6963 | C59: 141504.8382 | D59: 143377.4531 | E59: 144961.9735 | F59: 146402.4465 | G59: KERN25% | H59: 194217 | I59: 194649 | J59: 196521 | K59: 198106 | L59: 199546 | M59: Yuba | N59: 670 | O59: 674 | P59: 878 | Q59: 1269 | R59: 1542
A60: KERN20% | B60: 149139.3453 | C60: 150291.7237 | D60: 153892.9063 | E60: 157061.947 | F60: 159942.893 | G60: KERN20% | H60: 202283 | I60: 203436 | J60: 207037 | K60: 210206 | L60: 213087
A61: KERN15% | B61: 157350.0416 | C61: 159078.6092 | D61: 164408.3594 | E61: 169305.9677 | F61: 173483.3395 | G61: KERN15% | H61: 210494 | I61: 212223 | J61: 217552 | K61: 222450 | L61: 226627
A62: KINGS30% | B62: 132862 | C62: 132862 | D62: 132862 | E62: 132862 | F62: 132862 | G62: KINGS30% | H62: 186006 | I62: 186006 | J62: 186006 | K62: 186006 | L62: 186006
A63: KINGS25% | B63: 141072.6963 | C63: 141504.8382 | D63: 143377.4531 | E63: 144961.9735 | F63: 146402.4465 | G63: KINGS25% | H63: 194217 | I63: 194649 | J63: 196521 | K63: 198106 | L63: 199546
A64: KINGS20% | B64: 149139.3453 | C64: 150291.7237 | D64: 153892.9063 | E64: 157061.947 | F64: 159942.893 | G64: KINGS20% | H64: 202283 | I64: 203436 | J64: 207037 | K64: 210206 | L64: 213087
A65: KINGS15% | B65: 157350.0416 | C65: 159078.6092 | D65: 164408.3594 | E65: 169305.9677 | F65: 173483.3395 | G65: KINGS15% | H65: 210494 | I65: 212223 | J65: 217552 | K65: 222450 | L65: 226627
A66: LAKE30% | B66: 132862 | C66: 132862 | D66: 132862 | E66: 132862 | F66: 132862 | G66: LAKE30% | H66: 186006 | I66: 186006 | J66: 186006 | K66: 186006 | L66: 186006
A67: LAKE25% | B67: 141072.6963 | C67: 141504.8382 | D67: 143377.4531 | E67: 144961.9735 | F67: 146402.4465 | G67: LAKE25% | H67: 194217 | I67: 194649 | J67: 196521 | K67: 198106 | L67: 199546
A68: LAKE20% | B68: 149139.3453 | C68: 150291.7237 | D68: 153892.9063 | E68: 157061.947 | F68: 159942.893 | G68: LAKE20% | H68: 202283 | I68: 203436 | J68: 207037 | K68: 210206 | L68: 213087
A69: LAKE15% | B69: 157350.0416 | C69: 159078.6092 | D69: 164408.3594 | E69: 169305.9677 | F69: 173483.3395 | G69: LAKE15% | H69: 210494 | I69: 212223 | J69: 217552 | K69: 222450 | L69: 226627
A70: LASSEN30% | B70: 132862 | C70: 132862 | D70: 132862 | E70: 132862 | F70: 132862 | G70: LASSEN30% | H70: 186006 | I70: 186006 | J70: 186006 | K70: 186006 | L70: 186006
A71: LASSEN25% | B71: 141504.8382 | C71: 142081.0274 | D71: 143953.6424 | E71: 145538.1627 | F71: 147122.683 | G71: LASSEN25% | H71: 194649 | I71: 195225 | J71: 197098 | K71: 198682 | L71: 200267
A72: LASSEN20% | B72: 150147.6764 | C72: 151300.0548 | D72: 155045.2847 | E72: 158358.3727 | F72: 161383.3661 | G72: LASSEN20% | H72: 203292 | I72: 204444 | J72: 208189 | K72: 211502 | L72: 214527
A73: LASSEN15% | B73: 158790.5146 | C73: 160519.0822 | D73: 166136.9271 | E73: 171178.5827 | F73: 175644.0491 | G73: LASSEN15% | H73: 211935 | I73: 213663 | J73: 219281 | K73: 224323 | L73: 228788
A74: LOS ANGELES30% | B74: 132862 | C74: 132862 | D74: 132862 | E74: 132862 | F74: 132862 | G74: LOS ANGELES30% | H74: 186006 | I74: 186006 | J74: 186006 | K74: 186006 | L74: 186006
A75: LOS ANGELES25% | B75: 146114.3519 | C75: 146978.6357 | D75: 149859.5818 | E75: 152452.4333 | F75: 154757.1901 | G75: LOS ANGELES25% | H75: 199258 | I75: 200123 | J75: 203004 | K75: 205596 | L75: 207901
A76: LOS ANGELES20% | B76: 159222.6565 | C76: 161095.2715 | D76: 166713.1163 | E76: 171898.8192 | F76: 176508.3329 | G76: LOS ANGELES20% | H76: 212367 | I76: 214239 | J76: 219857 | K76: 225043 | L76: 229652
A77: LOS ANGELES15% | B77: 172330.9611 | C77: 175211.9072 | D77: 183710.6981 | E77: 191489.2525 | F77: 198403.523 | G77: LOS ANGELES15% | H77: 225475 | I77: 228356 | J77: 236855 | K77: 244633 | L77: 251548
A78: MADERA30% | B78: 132862 | C78: 132862 | D78: 132862 | E78: 132862 | F78: 132862 | G78: MADERA30% | H78: 186006 | I78: 186006 | J78: 186006 | K78: 186006 | L78: 186006
A79: MADERA25% | B79: 141072.6963 | C79: 141504.8382 | D79: 143377.4531 | E79: 144961.9735 | F79: 146402.4465 | G79: MADERA25% | H79: 194217 | I79: 194649 | J79: 196521 | K79: 198106 | L79: 199546
A80: MADERA20% | B80: 149139.3453 | C80: 150291.7237 | D80: 153892.9063 | E80: 157061.947 | F80: 159942.893 | G80: MADERA20% | H80: 202283 | I80: 203436 | J80: 207037 | K80: 210206 | L80: 213087
A81: MADERA15% | B81: 157350.0416 | C81: 159078.6092 | D81: 164408.3594 | E81: 169305.9677 | F81: 173483.3395 | G81: MADERA15% | H81: 210494 | I81: 212223 | J81: 217552 | K81: 222450 | L81: 226627
A82: MARIN30% | B82: 132862 | C82: 132862 | D82: 132862 | E82: 132862 | F82: 132862 | G82: MARIN30% | H82: 186006 | I82: 186006 | J82: 186006 | K82: 186006 | L82: 186006
A83: MARIN25% | B83: 153172.6698 | C83: 154757.1901 | D83: 159078.6092 | E83: 163111.9337 | F83: 166569.069 | G83: MARIN25% | H83: 206317 | I83: 207901 | J83: 212223 | K83: 216256 | L83: 219713
A84: MARIN20% | B84: 173483.3395 | C84: 176508.3329 | D84: 185151.1711 | E84: 193217.8201 | F84: 200132.0907 | G84: MARIN20% | H84: 226627 | I84: 229652 | J84: 238295 | K84: 246362 | L84: 253276
A85: MARIN15% | B85: 193794.0093 | C85: 198259.4757 | D85: 211223.733 | E85: 223467.7538 | F85: 233839.1596 | G85: MARIN15% | H85: 246938 | I85: 251403 | J85: 264368 | K85: 276612 | L85: 286983
A86: MARIPOSA30% | B86: 132862 | C86: 132862 | D86: 132862 | E86: 132862 | F86: 132862 | G86: MARIPOSA30% | H86: 186006 | I86: 186006 | J86: 186006 | K86: 186006 | L86: 186006
A87: MARIPOSA25% | B87: 141072.6963 | C87: 141504.8382 | D87: 143377.4531 | E87: 144961.9735 | F87: 146402.4465 | G87: MARIPOSA25% | H87: 194217 | I87: 194649 | J87: 196521 | K87: 198106 | L87: 199546
A88: MARIPOSA20% | B88: 149139.3453 | C88: 150291.7237 | D88: 153892.9063 | E88: 157061.947 | F88: 159942.893 | G88: MARIPOSA20% | H88: 202283 | I88: 203436 | J88: 207037 | K88: 210206 | L88: 213087
A89: MARIPOSA15% | B89: 157350.0416 | C89: 159078.6092 | D89: 164408.3594 | E89: 169305.9677 | F89: 173483.3395 | G89: MARIPOSA15% | H89: 210494 | I89: 212223 | J89: 217552 | K89: 222450 | L89: 226627
A90: MENDOCINO30% | B90: 132862 | C90: 132862 | D90: 132862 | E90: 132862 | F90: 132862 | G90: MENDOCINO30% | H90: 186006 | I90: 186006 | J90: 186006 | K90: 186006 | L90: 186006
A91: MENDOCINO25% | B91: 141072.6963 | C91: 141504.8382 | D91: 143377.4531 | E91: 144961.9735 | F91: 146402.4465 | G91: MENDOCINO25% | H91: 194217 | I91: 194649 | J91: 196521 | K91: 198106 | L91: 199546
A92: MENDOCINO20% | B92: 149139.3453 | C92: 150291.7237 | D92: 153892.9063 | E92: 157061.947 | F92: 159942.893 | G92: MENDOCINO20% | H92: 202283 | I92: 203436 | J92: 207037 | K92: 210206 | L92: 213087
A93: MENDOCINO15% | B93: 157350.0416 | C93: 159078.6092 | D93: 164408.3594 | E93: 169305.9677 | F93: 173483.3395 | G93: MENDOCINO15% | H93: 210494 | I93: 212223 | J93: 217552 | K93: 222450 | L93: 226627
A94: MERCED30% | B94: 132862 | C94: 132862 | D94: 132862 | E94: 132862 | F94: 132862 | G94: MERCED30% | H94: 186006 | I94: 186006 | J94: 186006 | K94: 186006 | L94: 186006
A95: MERCED25% | B95: 141072.6963 | C95: 141504.8382 | D95: 143377.4531 | E95: 144961.9735 | F95: 146402.4465 | G95: MERCED25% | H95: 194217 | I95: 194649 | J95: 196521 | K95: 198106 | L95: 199546
A96: MERCED20% | B96: 149139.3453 | C96: 150291.7237 | D96: 153892.9063 | E96: 157061.947 | F96: 159942.893 | G96: MERCED20% | H96: 202283 | I96: 203436 | J96: 207037 | K96: 210206 | L96: 213087
A97: MERCED15% | B97: 157350.0416 | C97: 159078.6092 | D97: 164408.3594 | E97: 169305.9677 | F97: 173483.3395 | G97: MERCED15% | H97: 210494 | I97: 212223 | J97: 217552 | K97: 222450 | L97: 226627
A98: MODOC30% | B98: 132862 | C98: 132862 | D98: 132862 | E98: 132862 | F98: 132862 | G98: MODOC30% | H98: 186006 | I98: 186006 | J98: 186006 | K98: 186006 | L98: 186006
A99: MODOC25% | B99: 141072.6963 | C99: 141504.8382 | D99: 143377.4531 | E99: 144961.9735 | F99: 146402.4465 | G99: MODOC25% | H99: 194217 | I99: 194649 | J99: 196521 | K99: 198106 | L99: 199546
A100: MODOC20% | B100: 149139.3453 | C100: 150291.7237 | D100: 153892.9063 | E100: 157061.947 | F100: 159942.893 | G100: MODOC20% | H100: 202283 | I100: 203436 | J100: 207037 | K100: 210206 | L100: 213087
A101: MODOC15% | B101: 157350.0416 | C101: 159078.6092 | D101: 164408.3594 | E101: 169305.9677 | F101: 173483.3395 | G101: MODOC15% | H101: 210494 | I101: 212223 | J101: 217552 | K101: 222450 | L101: 226627
A102: MONO30% | B102: 132862 | C102: 132862 | D102: 132862 | E102: 132862 | F102: 132862 | G102: MONO30% | H102: 186006 | I102: 186006 | J102: 186006 | K102: 186006 | L102: 186006
A103: MONO25% | B103: 142657.2166 | C103: 143377.4531 | D103: 145538.1627 | E103: 147410.7776 | F103: 149139.3453 | G103: MONO25% | H103: 195801 | I103: 196521 | J103: 198682 | K103: 200555 | L103: 202283
A104: MONO20% | B104: 152452.4333 | C104: 153892.9063 | D104: 158070.2781 | E104: 161959.5553 | F104: 165416.6906 | G104: MONO20% | H104: 205596 | I104: 207037 | J104: 211214 | K104: 215104 | L104: 218561
A105: MONO15% | B105: 162391.6972 | C105: 164408.3594 | D105: 170746.4408 | E105: 176652.3802 | F105: 181694.0358 | G105: MONO15% | H105: 215536 | I105: 217552 | J105: 223890 | K105: 229796 | L105: 234838
A106: MONTEREY30% | B106: 132862 | C106: 132862 | D106: 132862 | E106: 132862 | F106: 132862 | G106: MONTEREY30% | H106: 186006 | I106: 186006 | J106: 186006 | K106: 186006 | L106: 186006
A107: MONTEREY25% | B107: 144097.6897 | C107: 144961.9735 | D107: 147410.7776 | E107: 149715.5345 | F107: 151588.1494 | G107: MONTEREY25% | H107: 197242 | I107: 198106 | J107: 200555 | K107: 202860 | L107: 204732
A108: MONTEREY20% | B108: 155477.4266 | C108: 157061.947 | D108: 161959.5553 | E108: 166425.0217 | F108: 170314.2989 | G108: MONTEREY20% | H108: 208621 | I108: 210206 | J108: 215104 | K108: 219569 | L108: 223458
A109: MONTEREY15% | B109: 166857.1636 | C109: 169305.9677 | D109: 176508.3329 | E109: 183278.5562 | F109: 189184.4956 | G109: MONTEREY15% | H109: 220001 | I109: 222450 | J109: 229652 | K109: 236423 | L109: 242328
A110: NAPA30% | B110: 132862 | C110: 132862 | D110: 132862 | E110: 132862 | F110: 132862 | G110: NAPA30% | H110: 186006 | I110: 186006 | J110: 186006 | K110: 186006 | L110: 186006
A111: NAPA25% | B111: 145538.1627 | C111: 146546.4938 | D111: 149139.3453 | E111: 151732.1967 | F111: 153748.859 | G111: NAPA25% | H111: 198682 | I111: 199690 | J111: 202283 | K111: 204876 | L111: 206893
A112: NAPA20% | B112: 158214.3254 | C112: 160086.9403 | D112: 165416.6906 | E112: 170458.3462 | F112: 174779.7653 | G112: NAPA20% | H112: 211358 | I112: 213231 | J112: 218561 | K112: 223602 | L112: 227924
A113: NAPA15% | B113: 170890.4881 | C113: 173627.3868 | D113: 181694.0358 | E113: 189328.5429 | F113: 195810.6716 | G113: NAPA15% | H113: 224034 | I113: 226771 | J113: 234838 | K113: 242473 | L113: 248955
A114: NEVADA30% | B114: 132862 | C114: 132862 | D114: 132862 | E114: 132862 | F114: 132862 | G114: NEVADA30% | H114: 186006 | I114: 186006 | J114: 186006 | K114: 186006 | L114: 186006
A115: NEVADA25% | B115: 142945.3112 | C115: 143665.5478 | D115: 145826.2573 | E115: 147698.8722 | F115: 149427.4399 | G115: NEVADA25% | H115: 196089 | I115: 196810 | J115: 198970 | K115: 200843 | L115: 202571
A116: NEVADA20% | B116: 152884.5752 | C116: 154325.0482 | D116: 158646.4673 | E116: 162679.7918 | F116: 166136.9271 | G116: NEVADA20% | H116: 206029 | I116: 207469 | J116: 211790 | K116: 215824 | L116: 219281
A117: NEVADA15% | B117: 162967.8864 | C117: 165128.5959 | D117: 171610.7246 | E117: 177660.7113 | F117: 182846.4143 | G117: NEVADA15% | H117: 216112 | I117: 218273 | J117: 224755 | K117: 230805 | L117: 235990
A118: ORANGE30% | B118: 132862 | C118: 132862 | D118: 132862 | E118: 132862 | F118: 132862 | G118: ORANGE30% | H118: 186006 | I118: 186006 | J118: 186006 | K118: 186006 | L118: 186006
A119: ORANGE25% | B119: 147842.9195 | C119: 148851.2507 | D119: 152020.2913 | E119: 155045.2847 | F119: 157638.1362 | G119: ORANGE25% | H119: 200987 | I119: 201995 | J119: 205164 | K119: 208189 | L119: 210782
A120: ORANGE20% | B120: 162823.8391 | C120: 164840.5013 | D120: 171322.63 | E120: 177228.5694 | F120: 182414.2723 | G120: ORANGE20% | H120: 215968 | I120: 217985 | J120: 224467 | K120: 230373 | L120: 235558
A121: ORANGE15% | B121: 177804.7586 | C121: 180973.7993 | D121: 190624.9686 | E121: 199555.9014 | F121: 207190.4085 | G121: ORANGE15% | H121: 230949 | I121: 234118 | J121: 243769 | K121: 252700 | L121: 260334
A122: PLACER30% | B122: 132862 | C122: 132862 | D122: 132862 | E122: 132862 | F122: 132862 | G122: PLACER30% | H122: 186006 | I122: 186006 | J122: 186006 | K122: 186006 | L122: 186006
A123: PLACER25% | B123: 143377.4531 | C123: 144097.6897 | D123: 146402.4465 | E123: 148563.1561 | F123: 150291.7237 | G123: PLACER25% | H123: 196521 | I123: 197242 | J123: 199546 | K123: 201707 | L123: 203436
A124: PLACER20% | B124: 153892.9063 | C124: 155477.4266 | D124: 159942.893 | E124: 164264.3121 | F124: 167721.4474 | G124: PLACER20% | H124: 207037 | I124: 208621 | J124: 213087 | K124: 217408 | L124: 220865
A125: PLACER15% | B125: 164552.4067 | C125: 166713.1163 | D125: 173483.3395 | E125: 179821.4209 | F125: 185295.2184 | G125: PLACER15% | H125: 217696 | I125: 219857 | J125: 226627 | K125: 232965 | L125: 238439
A126: PLUMAS30% | B126: 132862 | C126: 132862 | D126: 132862 | E126: 132862 | F126: 132862 | G126: PLUMAS30% | H126: 186006 | I126: 186006 | J126: 186006 | K126: 186006 | L126: 186006
A127: PLUMAS25% | B127: 141648.8855 | C127: 142225.0747 | D127: 144241.737 | E127: 145970.3046 | F127: 147410.7776 | G127: PLUMAS25% | H127: 194793 | I127: 195369 | J127: 197386 | K127: 199114 | L127: 200555
A128: PLUMAS20% | B128: 150435.771 | C128: 151588.1494 | D128: 155477.4266 | E128: 158934.5619 | F128: 161959.5553 | G128: PLUMAS20% | H128: 203580 | I128: 204732 | J128: 208621 | K128: 212079 | L128: 215104
A129: PLUMAS15% | B129: 159222.6565 | C129: 161095.2715 | D129: 166713.1163 | E129: 172042.8665 | F129: 176508.3329 | G129: PLUMAS15% | H129: 212367 | I129: 214239 | J129: 219857 | K129: 225187 | L129: 229652
A130: RIVERSIDE30% | B130: 132862 | C130: 132862 | D130: 132862 | E130: 132862 | F130: 132862 | G130: RIVERSIDE30% | H130: 186006 | I130: 186006 | J130: 186006 | K130: 186006 | L130: 186006
A131: RIVERSIDE25% | B131: 141936.9801 | C131: 142657.2166 | D131: 144529.8316 | E131: 146402.4465 | F131: 147842.9195 | G131: RIVERSIDE25% | H131: 195081 | I131: 195801 | J131: 197674 | K131: 199546 | L131: 200987
A132: RIVERSIDE20% | B132: 151011.9602 | C132: 152308.386 | D132: 156197.6631 | E132: 159798.8457 | F132: 162823.8391 | G132: RIVERSIDE20% | H132: 204156 | I132: 205452 | J132: 209342 | K132: 212943 | L132: 215968
A133: RIVERSIDE15% | B133: 160086.9403 | C133: 161959.5553 | D133: 167865.4947 | E133: 173195.2449 | F133: 177804.7586 | G133: RIVERSIDE15% | H133: 213231 | I133: 215104 | J133: 221009 | K133: 226339 | L133: 230949
A134: SACRAMENTO30% | B134: 132862 | C134: 132862 | D134: 132862 | E134: 132862 | F134: 132862 | G134: SACRAMENTO30% | H134: 186006 | I134: 186006 | J134: 186006 | K134: 186006 | L134: 186006
A135: SACRAMENTO25% | B135: 143377.4531 | C135: 144097.6897 | D135: 146402.4465 | E135: 148563.1561 | F135: 150291.7237 | G135: SACRAMENTO25% | H135: 196521 | I135: 197242 | J135: 199546 | K135: 201707 | L135: 203436
A136: SACRAMENTO20% | B136: 153892.9063 | C136: 155477.4266 | D136: 159942.893 | E136: 164264.3121 | F136: 167721.4474 | G136: SACRAMENTO20% | H136: 207037 | I136: 208621 | J136: 213087 | K136: 217408 | L136: 220865
A137: SACRAMENTO15% | B137: 164552.4067 | C137: 166713.1163 | D137: 173483.3395 | E137: 179821.4209 | F137: 185295.2184 | G137: SACRAMENTO15% | H137: 217696 | I137: 219857 | J137: 226627 | K137: 232965 | L137: 238439
A138: SAN BENITO30% | B138: 132862 | C138: 132862 | D138: 132862 | E138: 132862 | F138: 132862 | G138: SAN BENITO30% | H138: 186006 | I138: 186006 | J138: 186006 | K138: 186006 | L138: 186006
A139: SAN BENITO25% | B139: 145682.21 | C139: 146546.4938 | D139: 149427.4399 | E139: 151876.244 | F139: 154181.0009 | G139: SAN BENITO25% | H139: 198826 | I139: 199690 | J139: 202571 | K139: 205020 | L139: 207325
A140: SAN BENITO20% | B140: 158502.42 | C140: 160375.0349 | D140: 165848.8325 | E140: 171034.5354 | F140: 175500.0018 | G140: SAN BENITO20% | H140: 211646 | I140: 213519 | J140: 218993 | K140: 224179 | L140: 228644
A141: SAN BENITO15% | B141: 171466.6773 | C141: 174203.5761 | D141: 182414.2723 | E141: 190192.8267 | F141: 196819.0027 | G141: SAN BENITO15% | H141: 224611 | I141: 227348 | J141: 235558 | K141: 243337 | L141: 249963
A142: SAN BERNARDINO30% | B142: 132862 | C142: 132862 | D142: 132862 | E142: 132862 | F142: 132862 | G142: SAN BERNARDINO30% | H142: 186006 | I142: 186006 | J142: 186006 | K142: 186006 | L142: 186006
A143: SAN BERNARDINO25% | B143: 141936.9801 | C143: 142657.2166 | D143: 144529.8316 | E143: 146402.4465 | F143: 147842.9195 | G143: SAN BERNARDINO25% | H143: 195081 | I143: 195801 | J143: 197674 | K143: 199546 | L143: 200987
A144: SAN BERNARDINO20% | B144: 151011.9602 | C144: 152308.386 | D144: 156197.6631 | E144: 159798.8457 | F144: 162823.8391 | G144: SAN BERNARDINO20% | H144: 204156 | I144: 205452 | J144: 209342 | K144: 212943 | L144: 215968
A145: SAN BERNARDINO15% | B145: 160086.9403 | C145: 161959.5553 | D145: 167865.4947 | E145: 173195.2449 | F145: 177804.7586 | G145: SAN BERNARDINO15% | H145: 213231 | I145: 215104 | J145: 221009 | K145: 226339 | L145: 230949
A146: SAN DIEGO30% | B146: 132862 | C146: 132862 | D146: 132862 | E146: 132862 | F146: 132862 | G146: SAN DIEGO30% | H146: 186006 | I146: 186006 | J146: 186006 | K146: 186006 | L146: 186006
A147: SAN DIEGO25% | B147: 146258.3992 | C147: 147266.7303 | D147: 150291.7237 | E147: 152884.5752 | F147: 155189.332 | G147: SAN DIEGO25% | H147: 199402 | I147: 200411 | J147: 203436 | K147: 206029 | L147: 208333
A148: SAN DIEGO20% | B148: 159798.8457 | C148: 161671.4607 | D148: 167577.4001 | E148: 172907.1503 | F148: 177516.664 | G148: SAN DIEGO20% | H148: 212943 | I148: 214815 | J148: 220721 | K148: 226051 | L148: 230661
A149: SAN DIEGO15% | B149: 173339.2922 | C149: 176220.2383 | D149: 184863.0765 | E149: 192929.7255 | F149: 199988.0434 | G149: SAN DIEGO15% | H149: 226483 | I149: 229364 | J149: 238007 | K149: 246074 | L149: 253132
A150: SAN FRANCISCO30% | B150: 132862 | C150: 132862 | D150: 132862 | E150: 132862 | F150: 132862 | G150: SAN FRANCISCO30% | H150: 186006 | I150: 186006 | J150: 186006 | K150: 186006 | L150: 186006
A151: SAN FRANCISCO25% | B151: 153172.6698 | C151: 154757.1901 | D151: 159078.6092 | E151: 163111.9337 | F151: 166569.069 | G151: SAN FRANCISCO25% | H151: 206317 | I151: 207901 | J151: 212223 | K151: 216256 | L151: 219713
A152: SAN FRANCISCO20% | B152: 173483.3395 | C152: 176508.3329 | D152: 185151.1711 | E152: 193217.8201 | F152: 200132.0907 | G152: SAN FRANCISCO20% | H152: 226627 | I152: 229652 | J152: 238295 | K152: 246362 | L152: 253276
A153: SAN FRANCISCO15% | B153: 193794.0093 | C153: 198259.4757 | D153: 211223.733 | E153: 223467.7538 | F153: 233839.1596 | G153: SAN FRANCISCO15% | H153: 246938 | I153: 251403 | J153: 264368 | K153: 276612 | L153: 286983
A154: SAN JOAQUIN30% | B154: 132862 | C154: 132862 | D154: 132862 | E154: 132862 | F154: 132862 | G154: SAN JOAQUIN30% | H154: 186006 | I154: 186006 | J154: 186006 | K154: 186006 | L154: 186006
A155: SAN JOAQUIN25% | B155: 141648.8855 | C155: 142225.0747 | D155: 144241.737 | E155: 145970.3046 | F155: 147554.8249 | G155: SAN JOAQUIN25% | H155: 194793 | I155: 195369 | J155: 197386 | K155: 199114 | L155: 200699
A156: SAN JOAQUIN20% | B156: 150435.771 | C156: 151732.1967 | D156: 155477.4266 | E156: 159078.6092 | F156: 162103.6026 | G156: SAN JOAQUIN20% | H156: 203580 | I156: 204876 | J156: 208621 | K156: 212223 | L156: 215248
A157: SAN JOAQUIN15% | B157: 159366.7038 | C157: 161239.3188 | D157: 166857.1636 | E157: 172186.9138 | F157: 176796.4275 | G157: SAN JOAQUIN15% | H157: 212511 | I157: 214383 | J157: 220001 | K157: 225331 | L157: 229940
A158: SAN LUIS OBISPO30% | B158: 132862 | C158: 132862 | D158: 132862 | E158: 132862 | F158: 132862 | G158: SAN LUIS OBISPO30% | H158: 186006 | I158: 186006 | J158: 186006 | K158: 186006 | L158: 186006
A159: SAN LUIS OBISPO25% | B159: 144241.737 | C159: 145106.0208 | D159: 147410.7776 | E159: 149715.5345 | F159: 151732.1967 | G159: SAN LUIS OBISPO25% | H159: 197386 | I159: 198250 | J159: 200555 | K159: 202860 | L159: 204876
A160: SAN LUIS OBISPO20% | B160: 155477.4266 | C160: 157205.9943 | D160: 161959.5553 | E160: 166569.069 | F160: 170458.3462 | G160: SAN LUIS OBISPO20% | H160: 208621 | I160: 210350 | J160: 215104 | K160: 219713 | L160: 223602
A161: SAN LUIS OBISPO15% | B161: 166857.1636 | C161: 169305.9677 | D161: 176652.3802 | E161: 183422.6035 | F161: 189184.4956 | G161: SAN LUIS OBISPO15% | H161: 220001 | I161: 222450 | J161: 229796 | K161: 236567 | L161: 242328
A162: SAN MATEO30% | B162: 132862 | C162: 132862 | D162: 132862 | E162: 132862 | F162: 132862 | G162: SAN MATEO30% | H162: 186006 | I162: 186006 | J162: 186006 | K162: 186006 | L162: 186006
A163: SAN MATEO25% | B163: 153172.6698 | C163: 154757.1901 | D163: 159078.6092 | E163: 163111.9337 | F163: 166569.069 | G163: SAN MATEO25% | H163: 206317 | I163: 207901 | J163: 212223 | K163: 216256 | L163: 219713
A164: SAN MATEO20% | B164: 173483.3395 | C164: 176508.3329 | D164: 185151.1711 | E164: 193217.8201 | F164: 200132.0907 | G164: SAN MATEO20% | H164: 226627 | I164: 229652 | J164: 238295 | K164: 246362 | L164: 253276
A165: SAN MATEO15% | B165: 193794.0093 | C165: 198259.4757 | D165: 211223.733 | E165: 223467.7538 | F165: 233839.1596 | G165: SAN MATEO15% | H165: 246938 | I165: 251403 | J165: 264368 | K165: 276612 | L165: 286983
A166: SANTA BARBARA30% | B166: 132862 | C166: 132862 | D166: 132862 | E166: 132862 | F166: 132862 | G166: SANTA BARBARA30% | H166: 186006 | I166: 186006 | J166: 186006 | K166: 186006 | L166: 186006
A167: SANTA BARBARA25% | B167: 146690.5411 | C167: 147842.9195 | D167: 150723.8656 | E167: 153460.7644 | F167: 155909.5685 | G167: SANTA BARBARA25% | H167: 199835 | I167: 200987 | J167: 203868 | K167: 206605 | L167: 209054
A168: SANTA BARBARA20% | B168: 160663.1295 | C168: 162679.7918 | D168: 168585.7312 | E168: 174203.5761 | F168: 178957.1371 | G168: SANTA BARBARA20% | H168: 213807 | I168: 215824 | J168: 221730 | K168: 227348 | L168: 232101
A169: SANTA BARBARA15% | B169: 174635.718 | C169: 177660.7113 | D169: 186447.5968 | E169: 194802.3404 | F169: 202004.7056 | G169: SANTA BARBARA15% | H169: 227780 | I169: 230805 | J169: 239592 | K169: 247946 | L169: 255149
A170: SANTA CLARA30% | B170: 132862 | C170: 132862 | D170: 132862 | E170: 132862 | F170: 132862 | G170: SANTA CLARA30% | H170: 186006 | I170: 186006 | J170: 186006 | K170: 186006 | L170: 186006
A171: SANTA CLARA25% | B171: 151300.0548 | C171: 152596.4806 | D171: 156485.7577 | E171: 160230.9876 | F171: 163400.0283 | G171: SANTA CLARA25% | H171: 204444 | I171: 205740 | J171: 209630 | K171: 213375 | L171: 216544
A172: SANTA CLARA20% | B172: 169738.1097 | C172: 172330.9611 | D172: 180253.5628 | E172: 187599.9753 | F172: 193938.0566 | G172: SANTA CLARA20% | H172: 222882 | I172: 225475 | J172: 233398 | K172: 240744 | L172: 247082
A173: SANTA CLARA15% | B173: 188176.1645 | C173: 192209.489 | D173: 204021.3678 | E173: 215113.0102 | F173: 224620.1322 | G173: SANTA CLARA15% | H173: 241320 | I173: 245353 | J173: 257165 | K173: 268257 | L173: 277764
A174: SANTA CRUZ30% | B174: 132862 | C174: 132862 | D174: 132862 | E174: 132862 | F174: 132862 | G174: SANTA CRUZ30% | H174: 186006 | I174: 186006 | J174: 186006 | K174: 186006 | L174: 186006
A175: SANTA CRUZ25% | B175: 148419.1088 | C175: 149427.4399 | D175: 152740.5279 | E175: 155909.5685 | F175: 158502.42 | G175: SANTA CRUZ25% | H175: 201563 | I175: 202571 | J175: 205885 | K175: 209054 | L175: 211646
A176: SANTA CRUZ20% | B176: 163832.1702 | C176: 165992.8798 | D176: 172619.0557 | E176: 178813.0898 | F176: 184142.84 | G176: SANTA CRUZ20% | H176: 216976 | I176: 219137 | J176: 225763 | K176: 231957 | L176: 237287
A177: SANTA CRUZ15% | B177: 179245.2317 | C177: 182558.3197 | D177: 192497.5836 | E177: 201860.6583 | F177: 209783.26 | G177: SANTA CRUZ15% | H177: 232389 | I177: 235702 | J177: 245642 | K177: 255005 | L177: 262927
A178: SHASTA30% | B178: 132862 | C178: 132862 | D178: 132862 | E178: 132862 | F178: 132862 | G178: SHASTA30% | H178: 186006 | I178: 186006 | J178: 186006 | K178: 186006 | L178: 186006
A179: SHASTA25% | B179: 141072.6963 | C179: 141504.8382 | D179: 143377.4531 | E179: 144961.9735 | F179: 146402.4465 | G179: SHASTA25% | H179: 194217 | I179: 194649 | J179: 196521 | K179: 198106 | L179: 199546
A180: SHASTA20% | B180: 149139.3453 | C180: 150291.7237 | D180: 153892.9063 | E180: 157061.947 | F180: 159942.893 | G180: SHASTA20% | H180: 202283 | I180: 203436 | J180: 207037 | K180: 210206 | L180: 213087
A181: SHASTA15% | B181: 157350.0416 | C181: 159078.6092 | D181: 164408.3594 | E181: 169305.9677 | F181: 173483.3395 | G181: SHASTA15% | H181: 210494 | I181: 212223 | J181: 217552 | K181: 222450 | L181: 226627
A182: SIERRA30% | B182: 132862 | C182: 132862 | D182: 132862 | E182: 132862 | F182: 132862 | G182: SIERRA30% | H182: 186006 | I182: 186006 | J182: 186006 | K182: 186006 | L182: 186006
A183: SIERRA25% | B183: 142369.122 | C183: 143089.3585 | D183: 145106.0208 | E183: 146978.6357 | F183: 148707.2034 | G183: SIERRA25% | H183: 195513 | I183: 196233 | J183: 198250 | K183: 200123 | L183: 201851
A184: SIERRA20% | B184: 151876.244 | C184: 153172.6698 | D184: 157350.0416 | E184: 161095.2715 | F184: 164408.3594 | G184: SIERRA20% | H184: 205020 | I184: 206317 | J184: 210494 | K184: 214239 | L184: 217552
A185: SIERRA15% | B185: 161383.3661 | C185: 163400.0283 | D185: 169594.0624 | E185: 175211.9072 | F185: 180109.5155 | G185: SIERRA15% | H185: 214527 | I185: 216544 | J185: 222738 | K185: 228356 | L185: 233254
A186: SISKIYOU30% | B186: 132862 | C186: 132862 | D186: 132862 | E186: 132862 | F186: 132862 | G186: SISKIYOU30% | H186: 186006 | I186: 186006 | J186: 186006 | K186: 186006 | L186: 186006
A187: SISKIYOU25% | B187: 141072.6963 | C187: 141504.8382 | D187: 143377.4531 | E187: 144961.9735 | F187: 146402.4465 | G187: SISKIYOU25% | H187: 194217 | I187: 194649 | J187: 196521 | K187: 198106 | L187: 199546
A188: SISKIYOU20% | B188: 149139.3453 | C188: 150291.7237 | D188: 153892.9063 | E188: 157061.947 | F188: 159942.893 | G188: SISKIYOU20% | H188: 202283 | I188: 203436 | J188: 207037 | K188: 210206 | L188: 213087
A189: SISKIYOU15% | B189: 157350.0416 | C189: 159078.6092 | D189: 164408.3594 | E189: 169305.9677 | F189: 173483.3395 | G189: SISKIYOU15% | H189: 210494 | I189: 212223 | J189: 217552 | K189: 222450 | L189: 226627
A190: SOLANO30% | B190: 132862 | C190: 132862 | D190: 132862 | E190: 132862 | F190: 132862 | G190: SOLANO30% | H190: 186006 | I190: 186006 | J190: 186006 | K190: 186006 | L190: 186006
A191: SOLANO25% | B191: 143665.5478 | C191: 144529.8316 | D191: 146834.5884 | E191: 148851.2507 | F191: 150867.9129 | G191: SOLANO25% | H191: 196810 | I191: 197674 | J191: 199979 | K191: 201995 | L191: 204012
A192: SOLANO20% | B192: 154469.0955 | C192: 156053.6158 | D192: 160663.1295 | E192: 164984.5486 | F192: 168729.7785 | G192: SOLANO20% | H192: 207613 | I192: 209198 | J192: 213807 | K192: 218129 | L192: 221874
A193: SOLANO15% | B193: 165272.6433 | C193: 167577.4001 | D193: 174635.718 | E193: 180973.7993 | F193: 186591.6441 | G193: SOLANO15% | H193: 218417 | I193: 220721 | J193: 227780 | K193: 234118 | L193: 239736
A194: SONOMA30% | B194: 132862 | C194: 132862 | D194: 132862 | E194: 132862 | F194: 132862 | G194: SONOMA30% | H194: 186006 | I194: 186006 | J194: 186006 | K194: 186006 | L194: 186006
A195: SONOMA25% | B195: 146546.4938 | C195: 147410.7776 | D195: 150435.771 | E195: 153028.6225 | F195: 155333.3793 | G195: SONOMA25% | H195: 199690 | I195: 200555 | J195: 203580 | K195: 206173 | L195: 208477
A196: SONOMA20% | B196: 160086.9403 | C196: 161959.5553 | D196: 167865.4947 | E196: 173339.2922 | F196: 177948.8059 | G196: SONOMA20% | H196: 213231 | I196: 215104 | J196: 221009 | K196: 226483 | L196: 231093
A197: SONOMA15% | B197: 173771.4341 | C197: 176652.3802 | D197: 185439.2657 | E197: 193505.9147 | F197: 200564.2326 | G197: SONOMA15% | H197: 226915 | I197: 229796 | J197: 238583 | K197: 246650 | L197: 253708
A198: STANISLAUS30% | B198: 132862 | C198: 132862 | D198: 132862 | E198: 132862 | F198: 132862 | G198: STANISLAUS30% | H198: 186006 | I198: 186006 | J198: 186006 | K198: 186006 | L198: 186006
A199: STANISLAUS25% | B199: 141072.6963 | C199: 141504.8382 | D199: 143377.4531 | E199: 144961.9735 | F199: 146402.4465 | G199: STANISLAUS25% | H199: 194217 | I199: 194649 | J199: 196521 | K199: 198106 | L199: 199546
A200: STANISLAUS20% | B200: 149139.3453 | C200: 150291.7237 | D200: 153892.9063 | E200: 157061.947 | F200: 159942.893 | G200: STANISLAUS20% | H200: 202283 | I200: 203436 | J200: 207037 | K200: 210206 | L200: 213087
... 33 more rows

Sheet CHAS Data (hidden)
A1: name | B1: AND with housing cost burden greater than 50%, none of the needs above AND household income is less than or equal to 30% of HAMFI | C1: TOTAL Renter household income is less than or equal to 30% of HAMFI
A2: Alameda | B2: 1330 | C2: 73320 | D2: =B2/C2 -> 0.01813966176 | E2: =IF(D2>0.5,"YES",0) -> 0
A3: Alpine | B3: 11 | C3: 10 | D3: =MIN((B3/C3),1) -> 1 | E3: YES
A4: Amador | B4: 173 | C4: 875 | D4: =B4/C4 -> 0.1977142857 | E4: 0
A5: Butte | B5: 505 | C5: 7985 | D5: =B5/C5 -> 0.06324358172 | E5: 0
A6: Calaveras | B6: 166 | C6: 945 | D6: 0.1756613757 | E6: 0
A7: Colusa | B7: 88 | C7: 445 | D7: 0.197752809 | E7: 0
A8: Contra Costa | B8: 1141 | C8: 36640 | D8: 0.03114082969 | E8: 0
A9: Del Norte | B9: 167 | C9: 1000 | D9: 0.167 | E9: 0
A10: El Dorado | B10: 411 | C10: 3580 | D10: 0.1148044693 | E10: 0
A11: Fresno | B11: 947 | C11: 34670 | D11: 0.02731468128 | E11: 0
A12: Glenn | B12: 192 | C12: 870 | D12: 0.2206896552 | E12: 0
A13: Humboldt | B13: 455 | C13: 5450 | D13: 0.08348623853 | E13: 0
A14: Imperial | B14: 439 | C14: 6410 | D14: 0.06848673947 | E14: 0
A15: Inyo | B15: 138 | C15: 525 | D15: 0.2628571429 | E15: 0
A16: Kern | B16: 875 | C16: 24825 | D16: 0.03524672709 | E16: 0
A17: Kings | B17: 355 | C17: 4190 | D17: 0.08472553699 | E17: 0
A18: Lake | B18: 274 | C18: 2440 | D18: 0.112295082 | E18: 0
A19: Lassen | B19: 150 | C19: 885 | D19: 0.1694915254 | E19: 0
A20: Los Angeles | B20: 3125 | C20: 517420 | D20: 0.006039580998 | E20: 0
A21: Madera | B21: 432 | C21: 3650 | D21: 0.1183561644 | E21: 0
A22: Marin | B22: 542 | C22: 10505 | D22: 0.05159447882 | E22: 0
A23: Mariposa | B23: 106 | C23: 540 | D23: 0.1962962963 | E23: 0
A24: Mendocino | B24: 329 | C24: 3255 | D24: 0.1010752688 | E24: 0
A25: Merced | B25: 563 | C25: 8610 | D25: 0.06538908246 | E25: 0
A26: Modoc | B26: 86 | C26: 370 | D26: 0.2324324324 | E26: 0
A27: Mono | B27: 99 | C27: 155 | D27: 0.6387096774 | E27: YES
A28: Monterey | B28: 447 | C28: 10985 | D28: 0.04069185253 | E28: 0
A29: Napa | B29: 322 | C29: 3610 | D29: 0.0891966759 | E29: 0
A30: Nevada | B30: 360 | C30: 2340 | D30: 0.1538461538 | E30: 0
A31: Orange | B31: 1711 | C31: 106440 | D31: 0.01607478392 | E31: 0
A32: Placer | B32: 522 | C32: 7495 | D32: 0.06964643095 | E32: 0
A33: Plumas | B33: 105 | C33: 570 | D33: 0.1842105263 | E33: 0
A34: Riverside | B34: 1203 | C34: 49445 | D34: 0.02433006371 | E34: 0
A35: Sacramento | B35: 1368 | C35: 62015 | D35: 0.02205917923 | E35: 0
A36: San Benito | B36: 156 | C36: 1105 | D36: 0.1411764706 | E36: 0
A37: San Bernardino | B37: 1238 | C37: 56065 | D37: 0.02208151253 | E37: 0
A38: San Diego | B38: 2090 | C38: 117030 | D38: 0.01785866872 | E38: 0
A39: San Francisco | B39: 1269 | C39: 66120 | D39: 0.0191923775 | E39: 0
A40: San Joaquin | B40: 631 | C40: 19390 | D40: 0.03254254771 | E40: 0
A41: San Luis Obispo | B41: 632 | C41: 10280 | D41: 0.06147859922 | E41: 0
A42: San Mateo | B42: 788 | C42: 23305 | D42: 0.03381248659 | E42: 0
A43: Santa Barbara | B43: 587 | C43: 14495 | D43: 0.04049672301 | E43: 0
A44: Santa Clara | B44: 1294 | C44: 65980 | D44: 0.01961200364 | E44: 0
A45: Santa Cruz | B45: 593 | C45: 11200 | D45: 0.05294642857 | E45: 0
A46: Shasta | B46: 409 | C46: 5705 | D46: 0.07169149869 | E46: 0
A47: Sierra | B47: 52 | C47: 90 | D47: 0.5777777778 | E47: =IF(D47>0.5,"YES",0) -> YES
A48: Siskiyou | B48: 209 | C48: 1850 | D48: 0.112972973 | E48: =IF(D48>0.5,YES,0) -> 0
A49: Solano | B49: 578 | C49: 12715 | D49: 0.04545812033 | E49: =IF(D49>0.5,YES,0) -> 0
A50: Sonoma | B50: 650 | C50: 13765 | D50: 0.04722121322 | E50: =IF(D50>0.5,YES,0) -> 0
A51: Stanislaus | B51: 605 | C51: 15720 | D51: 0.03848600509 | E51: =IF(D51>0.5,YES,0) -> 0
A52: Sutter | B52: 261 | C52: 2250 | D52: 0.116 | E52: =IF(D52>0.5,YES,0) -> 0
A53: Tehama | B53: 191 | C53: 1700 | D53: 0.1123529412 | E53: =IF(D53>0.5,YES,0) -> 0
A54: Trinity | B54: 90 | C54: 425 | D54: 0.2117647059 | E54: =IF(D54>0.5,YES,0) -> 0
A55: Tulare | B55: 542 | C55: 14240 | D55: 0.03806179775 | E55: =IF(D55>0.5,YES,0) -> 0
A56: Tuolumne | B56: 232 | C56: 1400 | D56: 0.1657142857 | E56: =IF(D56>0.5,YES,0) -> 0
A57: Ventura | B57: 798 | C57: 20835 | D57: 0.03830093593 | E57: =IF(D57>0.5,YES,0) -> 0
A58: Yolo | B58: 519 | C58: 10665 | D58: 0.04866385373 | E58: =IF(D58>0.5,YES,0) -> 0
A59: Yuba | B59: 192 | C59: 2010 | D59: 0.09552238806 | E59: =IF(D59>0.5,YES,0) -> 0
